{"text_format":"1","workbook":"xlsx","n_sheets":2,"sheets":["KT","PN z 2. čtení"],"not_rendered":{"charts":0,"images":0,"macros":0,"external_links":0,"defined_names":3,"comments":0,"pivot_tables":1},"unopened":[],"bounds":{"document_bytes":16777216,"sheet_cells":100000,"rows_first":2000,"rows_last":500,"rows_between":2000,"halvings":0,"cell_chars":16384,"cell_head_chars":4096},"cells_cut":0,"cells_raw":0,"read":"whole","date_system":"1900"}

{"sheet":"KT","index":0,"n_rows":7,"n_cols":6,"rows_kept":7,"cut":false,"hidden":false,"merged":[]}
[]
[]
[null,null,"Hodnoty"]
["b","c","Součet z kapitoly (+)","Součet z vps (+)","Součet z kapitoly (-)","Součet z vps (-)"]
["(prázdné)","(prázdné)"]
["(prázdné) Celkem"]
["Celkový součet"]

{"sheet":"PN z 2. čtení","index":1,"n_rows":260,"n_cols":15,"rows_kept":260,"cut":false,"hidden":false,"merged":[[257,8,257,9],[2,0,2,12],[4,5,4,7],[4,8,4,10],[16,5,16,7],[16,8,16,10],[255,4,255,10]]}
[]
["Přehled schválených pozměňovacích návrhů k zákonu o státním rozpočtu na rok 2025"]
[]
["I. PŘÍJMY (v  Kč)"]
["Poř. č.",null,"čís. kap.","kapitola","Titul a  ukazatel státního rozpočtu ","Zvýšení SR 2025",null,null,"Snížení SR 2025",null,null,"Přihlásil se k PN/předkládající poslanci","Poznámka zpravodaje","číslo sněmovního dokumentu","stanovisko MF"]
[null,null,null,null,null,"kapitoly","VPS","Celkem","kapitoly","VPS","Celkem"]
[null,null,null,null,null,null,null,{"$f":"SUM(F7:G7)","v":0},null,null,{"$f":"SUM(I7:J7)","v":0}]
[null,null,null,null,null,null,null,{"$f":"SUM(F8:G8)","v":0},null,null,{"$f":"SUM(I8:J8)","v":0}]
[null,null,null,null,null,null,null,{"$f":"SUM(F9:G9)","v":0},null,null,{"$f":"SUM(I9:J9)","v":0}]
[null,null,null,null,null,null,null,{"$f":"SUM(F10:G10)","v":0},null,null,{"$f":"SUM(I10:J10)","v":0}]
[null,null,null,null,null,null,null,{"$f":"SUM(F11:G11)","v":0},null,null,{"$f":"SUM(I11:J11)","v":0}]
[null,null,null,null,"CELKEM",{"$f":"SUM(F10:F11)","v":0},0,0,0,0,0]
[null,null,null,null,null,null,null,{"$f":"SUM(F12:G12)","v":0},null,null,{"$f":"SUM(I12:J12)","v":0}]
[null,null,null,null,{"$f":"H252","v":0}]
[]
["II.  VÝDAJE   (v  Kč)"]
["Poř. č.",null,"č. kap.","kapitola","Titul a  ukazatel státního rozpočtu ","Zvýšení SR 2025",null,null,"Snížení SR 2025",null,null,"Přihlásil se k PN/předkládající poslanci","Poznámka zpravodaje","číslo sněmovního dokumentu","stanovisko MF"]
[null,null,null,null,null,"kapitoly","VPS","Celkem","kapitoly","VPS","Celkem"]
[]
["a","aa","b","c","d","kapitoly (+)","vps (+)","celkem (+)","kapitoly (-)","vps (-)","celkem (-)","výbor","pozn","číslo"]
[null,null,314,"Min. vnitra","zvýšit výdaje v kap. 314 Min. vnitra v rámci programu Z1404 a názvu programu „Podpora spolkové činnosti spolků působících na úseku požární ochrany, jejichž členové vyvíjejí činnost i v jednotkách SDH obcí“ o částku 10 000 000 Kč. Změna se promítne do dalších adekvátních ukazatelů.",10000000,null,{"$f":"SUM(F21:G21)","v":10000000},null,null,{"$f":"SUM(I21:J21)","v":0},"Rozpočtový výbor",null,null,"SOUHLAS"]
[null,null,314,"Min. vnitra","snížit  výdaje v kap. 314 Min. vnitra v rámci programu Z1401  „Podpora NNO působících na úseku PO, IZS, ochrany obyvatelstva a krizového řízení“ o částku 10 000 000 Kč. Změna se promítne do dalších adekvátních ukazatelů.",null,null,0,10000000,null,10000000]
[null,null,329,"Min. zemědělství","zvýšit výdaje v kap. 329 Min. zemědělství v rámci specifického ukazatele \"Podpora vodního hospodářství\" o částku 700 000 000 Kč za účelem financování vodohospodářské infrastruktury a to v rámci programu 12940 \"Podpora opatření pro zmírnění negativních dopadů sucha a nedostatku vody\" a dále v rámci programu 12941 \"Podpora výstavby a technického zhodnocení infrastruktury vodovodů a kanalizací III\". Změna se promítne do dalších adekvátních ukazatelů kapitoly. ",700000000,null,700000000,null,null,0,"Rozpočtový výbor",null,null,"SOUHLAS"]
[null,null,329,"Min. zemědělství","snížit výdaje v kap. 329 Min. zemědělství v rámci průřezového ukazatele \"Výdaje na společnou zemědělskou politiku celkem\" a \"v tom: podpora venkova – ze státního rozpočtu“ o částku 700 000 000 Kč.  Změna se promítne do dalších adekvátních ukazatelů kapitoly. ",null,null,0,700000000,null,700000000]
[null,null,333,"Min. školství mládeže a tělovýchovy","zvýšit výdaje v kap. 333 Min. školství, mládeže a tělovýchovy v rámci specifického ukazatele \"Podpora činnosti v oblasti mládeže“ o částku 30 000 000 Kč určenou na podporu organizací v oblasti práce s dětmi a mládeží.  Změna se promítne do dalších adekvátních ukazatelů.  ",30000000,null,30000000,null,null,0,"Rozpočtový výbor",null,null,"SOUHLAS"]
[null,null,398,"Všeobecná pokladní správa","snížit výdaje v kap. 398 Všeobecná pokladní správa v rámci specifického ukazatele  „Vládní rozpočtová rezerva“ o částku 30 000 000 Kč.  Změna se promítne do dalších adekvátních ukazatelů.  ",null,null,0,null,30000000,30000000]
["5",null,329,"Min. zemědělství","zvýšit výdaje v kap. 329 Min. zemědělství v rámci specifického ukazatele \"Podpora lesního hospodářství\" o částku 1 000 000 000 Kč s určením na obnovu lesů po kůrovcové kalamitě. Změna se promítne do dalších adekvátních ukazatelů.  ",1000000000,null,{"$f":"SUM(F27:G27)","v":1000000000},null,null,{"$f":"SUM(I27:J27)","v":0},"K. Tureček, J. Kott, M. Balaštíková, D. Pražák, J. Faltýnek, D. Ryba, M. Kukla, J. Volný",null,5558]
[null,null,398,"Všeobecná pokladní správa","snížit výdaje v kap. 398 Všeobecná pokladní správa v rámci specifického ukazatele \"Vládní rozpočtová rezerva\" o částku 1 000 000 000 Kč. Změna se promítne do dalších adekvátních ukazatelů.  ",null,null,0,null,1000000000,1000000000]
["6",null,329,"Min. zemědělství","zvýšit výdaje v kap. 329 Min. zemědělství v rámci specifického ukazatele \"Ostatní výdaje na státní politiku resortu, inspekční, kontrolní a výzkumnou činnost\" o částku 100 000 000 Kč a zároveň se zvyšuje průřezový ukazatel \"Výdaje na výzkum, vývoj a inovace celkem včetně programů spolufinancovaných z prostředků zahraničních programů\" a \"v tom: ze státního rozpočtu celkem\" a \"v tom: účelová podpora celkem\" s účelem podpoření aplikovaného výzkumu a vývoje k udržení konkurenceschopnosti v zemědělství. Změna se promítne do dalších adekvátních ukazatelů.  ",100000000,null,100000000,null,null,0,"K. Tureček, M. Balaštíková, J. Faltýnek, J. Volný, J. Kott, D. Pražák",null,5576]
[null,null,398,"Všeobecná pokladní správa","snížit výdaje v kap. 398 Všeobecná pokladní správa v rámci specifického ukazatele \"Vládní rozpočtová rezerva\" o částku 100 000 000 Kč. Změna se promítne do dalších adekvátních ukazatelů.  ",null,null,0,null,100000000,100000000]
["7",null,329,"Min. zemědělství","zvýšit výdaje v kap. 329 Min. zemědělství v rámci specifického ukazatele \"Podpora agrárního sektoru\" a \"v tom: dotace Státnímu zemědělskému intervenčnímu fondu\" o částku 60 000 000 Kč s účelem navýšit národní dotace směřující k dotačnímu titulu 1. D Podpora včelařství.  Změna se promítne do dalších adekvátních ukazatelů.  ",60000000,null,60000000,null,null,0,"K. Tureček, J. Kott, M. Balaštíková, J. Faltýnek, D. Pražák, J. Volný",null,5564]
[null,null,398,"Všeobecná pokladní správa","snížit výdaje v kap. 398 Všeobecná pokladní správa v rámci specifického ukazatele \"Vládní rozpočtová rezerva\" o částku 60 000 000 Kč. Změna se promítne do dalších adekvátních ukazatelů.  ",null,null,0,null,60000000,60000000]
["8",null,329,"Min. zemědělství","zvýšit výdaje v kap. 329 Min. zemědělství v rámci specifického ukazatele \"Podpora agrárního sektoru\" a \"v tom: dotace Státnímu zemědělskému intervenčnímu fondu\" o částku 24 000 000 Kč s určením na dotační titul 15 Podpora mimoprodukčních funkcí rybníků kompenzující rybářským subjektům újmy vzniklé zajišťováním vodohodspodářských a celospolečenských funkcí rybníků. Změna se promítne do dalších adekvátních ukazatelů.  ",24000000,null,24000000,null,null,0,"K. Tureček, J. Kott, M. Balaštíková, J. Faltýnek, D. Pražák,  J. Volný",null,5559]
[null,null,398,"Všeobecná pokladní správa","snížit výdaje v kap. 398 Všeobecná pokladní správa v rámci specifického ukazatele \"Vládní rozpočtová rezerva\" o částku 24 000 000 Kč. Změna se promítne do dalších adekvátních ukazatelů.  ",null,null,0,null,24000000,24000000]
["9",null,329,"Min. zemědělství","zvýšit výdaje v kap. 329 Min. zemědělství v rámci specifického ukazatele \"Ostatní výdaje na státní politiku resortu, inspekční, kontrolní a výzkumnou činnost\" o částku 3 000 000 Kč určenou na podporu odborných periodik pro spolky myslivců.  Změna se promítne do dalších adekvátních ukazatelů.  ",3000000,null,3000000,null,null,0,"K. Tureček, J. Kott, M. Balaštíková, J. Faltýnek, D. Pražák, J. Volný",null,5561]
[null,null,398,"Všeobecná pokladní správa","snížit výdaje v kap. 398 Všeobecná pokladní správa v rámci specifického ukazatele \"Vládní rozpočtová rezerva\" o částku 3 000 000 Kč. Změna se promítne do dalších adekvátních ukazatelů.  ",null,null,0,null,3000000,3000000]
["10",null,329,"Min. zemědělství","zvýšit výdaje v kap. 329 Min. zemědělství v rámci specifického ukazatele \"Ostatní výdaje na státní politiku resortu, inspekční, kontrolní a výzkumnou činnost\" o částku 3 000 000 Kč určenou na podporu odborných periodik pro spolky rybářů.  Změna se promítne do dalších adekvátních ukazatelů.  ",3000000,null,3000000,null,null,0,"K. Tureček, J. Kott, M. Balaštíková, J. Faltýnek, D. Pražák, J. Volný",null,5562]
[null,null,398,"Všeobecná pokladní správa","snížit výdaje v kap. 398 Všeobecná pokladní správa v rámci specifického ukazatele \"Vládní rozpočtová rezerva\" o částku 3 000 000 Kč. Změna se promítne do dalších adekvátních ukazatelů.  ",null,null,0,null,3000000,3000000]
["11",null,329,"Min. zemědělství","zvýšit výdaje v kap. 329 Min. zemědělství v rámci specifického ukazatele \"Ostatní výdaje na státní politiku resortu, inspekční, kontrolní a výzkumnou činnost\" o částku 5 000 000 Kč určenou na odborná periodika spolkům včelařů.  Změna se promítne do dalších adekvátních ukazatelů.  ",5000000,null,5000000,null,null,0,"K. Tureček, J. Kott, M. Balaštíková, J. Faltýnek, D. Pražák,  M. Kukla, J. Volný",null,5566]
[null,null,398,"Všeobecná pokladní správa","snížit výdaje v kap. 398 Všeobecná pokladní správa v rámci specifického ukazatele \"Vládní rozpočtová rezerva\" o částku 5 000 000 Kč. Změna se promítne do dalších adekvátních ukazatelů.  ",null,null,0,null,5000000,5000000]
["12",null,329,"Min. zemědělství","zvýšit výdaje v kap. 329 Min. zemědělství v rámci specifického ukazatele \"Ostatní výdaje na státní politiku resortu, inspekční, kontrolní a výzkumnou činnost\" o částku 2 000 000 Kč určenou na odborná periodika spolkům zahrádkářů.  Změna se promítne do dalších adekvátních ukazatelů.  ",2000000,null,2000000,null,null,0,"K. Tureček, J. Kott, M. Balaštíková, J. Faltýnek, D. Pražák,  J. Volný",null,5567]
[null,null,398,"Všeobecná pokladní správa","snížit výdaje v kap. 398 Všeobecná pokladní správa v rámci specifického ukazatele \"Vládní rozpočtová rezerva\" o částku 2 000 000 Kč. Změna se promítne do dalších adekvátních ukazatelů.  ",null,null,0,null,2000000,2000000]
["13",null,334,"Min. kultury","zvýšit výdaje v kap. 334 Min. kultury v rámci specifického ukazatele \"Záchrana a obnova kulturních památek, veřejné služby muzeí\" a \"v tom:programy ochrany a péče o kulturní statky\" o částku 34 000 000 Kč s účelem podpořit Program 13452 a podprogram Výkupy předmětů kulturní hodnoty mimořádného významu. Změna se promítne do dalších adekvátních ukazatelů.  ",34000000,null,{"$f":"SUM(F43:G43)","v":34000000},null,null,0,"M. Baxa",null,5579,"SOUHLAS"]
[null,null,334,"Min. Kultury","snížit výdaje v kap. 334 Min. kultury v rámci specifického ukazatele \"Příspěvkové organizace zřízené Ministerstvem kultury\" a \"v tom: příspěvek na provoz příspěvkovým organizacím\" o částku 34 000 000 Kč. Změna se promítne do dalších adekvátních ukazatelů.  ",null,null,0,34000000,null,34000000]
["14",null,334,"Min. kultury","zvýšit výdaje v kap. 334 Min. kultury v rámci specifického ukazatele \"v tom: kulturní dědictví ve vlastnictví státu, podporované evropskými fondy\" o částku 20 000 000 Kč. Dále se zvyšuje specifický ukazatel \"Kulturní služby, podpora živého umění\" a \"v tom: rozvoj kulturního a kreativního sektoru\" o částku 20 000 000 Kč s účelem pokrýt výdaje na spolufinancování evropských projektů, primárně DPH. Změna se promítne do dalších adekvátních ukazatelů.  ",40000000,null,{"$f":"SUM(F45:G45)","v":40000000},null,null,0,"M. Baxa",null,5580,"SOUHLAS"]
[null,null,334,"Min. Kultury","snížit výdaje v kap. 334 Min. kultury v rámci specifického ukazatele \"Příspěvkové organizace zřízené Ministerstvem kultury\" o částku 20 000 000 Kč a zároveň snížit \"v tom: příspěvek na provoz příspěvkovým organizacím\" o částku 40 000 000 Kč. Změna se promítne do dalších adekvátních ukazatelů.  ",null,null,0,40000000,null,40000000]
["15",null,333,"Min. školství, mládeže a tělovýchovy","zvýšit výdaje v kap. 333 Min. školství, mládeže a tělovýchovy v rámci specifického ukazatele \"Podpora činnosti v oblasti sportu\" a \"v tom: školní a vysokoškolský sport\" o částku 300 000 000 Kč k rozvoji mládežnické činnosti a posílení komunitního života v oblasti sportu. Změna se promítne do dalších adekvátních ukazatelů.  ",300000000,null,300000000,null,null,0,"M. Novák",null,5590]
[null,null,398,"Všeobecná pokladní správa","snížit výdaje v kap. 398 Všeobecná pokladní správa v rámci specifického ukazatele \"Vládní rozpočtová rezerva\" o částku 300 000 000 Kč. Změna se promítne do dalších adekvátních ukazatelů.  ",null,null,0,null,300000000,300000000]
["16",null,314,"Min. vnitra","zvýšit výdaje v kap. 314 Min. vnitra v rámci specifického ukazatele \"Výdaje na zabezpečení plnění úkolů Ministerstva vnitra a ostatních organizačních složek státu\" o částku 15 000 000 Kč a zároveň se o tuto částku zvyšuje průřezový ukazatel \"Program sociální prevence a prevence kriminality\" s určením na snížení negativních dopadů drogového zneužívání na společnost a k prevenci závislosti a kriminality. Změna se promítne do dalších adekvátních ukazatelů.  ",15000000,null,15000000,null,null,0,"M. Novák",null,5591]
[null,null,398,"Všeobecná pokladní správa","snížit výdaje v kap. 398 Všeobecná pokladní správa v rámci specifického ukazatele \"Vládní rozpočtová rezerva\" o částku 15 000 000 Kč. Změna se promítne do dalších adekvátních ukazatelů.  ",null,null,0,null,15000000,15000000]
["17",null,334,"Min. kultury","zvýšit výdaje v kap. 334 Min. kultury v rámci specifického ukazatele \"Kulturní služby, podpora živého umění\" a \"v tom: rozvoj kulturního a kreativního sektoru\" o částku 300 000 000 Kč  s účelem podpořit zejména ochotnické divadlo, spolky udržující lidové tradice a dílny vyrábějící lidové kroje. Změna se promítne do dalších adekvátních ukazatelů.  ",300000000,null,300000000,null,null,0,"M. Novák, R. Vondráček",null,5592]
[null,null,398,"Všeobecná pokladní správa","snížit výdaje v kap. 398 Všeobecná pokladní správa v rámci specifického ukazatele \"Vládní rozpočtová rezerva\" o částku 300 000 000 Kč. Změna se promítne do dalších adekvátních ukazatelů.  ",null,null,0,null,300000000,300000000]
["18",null,317,"Min. pro místní rozvoj","zvýšit výdaje v kap. 317 Min. pro místní rozvoj v rámci specifického ukazatele \"Podpora bydlení\" a \"v tom: dotace SFPI na podporu bydlení\" o částku 8 500 000 000 Kč určenou na podpoření dostupnosti bydlení. Změna se promítne do dalších adekvátních ukazatelů.  ",8500000000,null,8500000000,null,null,0,"M. Pošarová",null,5543]
[null,null,322,"Min. průmyslu a obchodu","snížit výdaje v kap. 322 Min. průmyslu a obchodu v rámci specifického ukazatele \"Dotace na obnovitelné zdroje energie\" o částku 8 500 000 000 Kč. Změna se promítne do dalších adekvátních ukazatelů.  ",null,null,null,8500000000,null,8500000000]
["19",null,317,"Min. pro místní rozvoj","zvýšit výdaje v kap. 317 Min. pro místní rozvoj v rámci specifického ukazatele \"Podpora bydlení\" a \"v tom: dotace SFPI na podporu bydlení\" o částku 5 000 000 000 Kč určenou na podpoření dostupnosti bydlení. Změna se promítne do dalších adekvátních ukazatelů.  ",5000000000,null,{"$f":"SUM(F55:G55)","v":5000000000},null,null,0,"M. Pošarová",null,5544]
[null,null,322,"Min. průmyslu a obchodu","snížit výdaje v kap. 322 Min. průmyslu a obchodu v rámci specifického ukazatele \"Dotace na obnovitelné zdroje energie\" o částku 5 000 000 000 Kč. Změna se promítne do dalších adekvátních ukazatelů.  ",null,null,{"$f":"SUM(F56:G56)","v":0},5000000000,null,5000000000]
["20",null,317,"Min. pro místní rozvoj","zvýšit výdaje v kap. 317 Min. pro místní rozvoj v rámci specifického ukazatele \"Podpora regionálního rozvoje a cestovního ruchu\" a \"v tom: Horská služba\" a také \"v tom\" ostatní výdaje na regionální rozvoj a cestovní ruch\" o částku 5 000 000 000 Kč určené na podporu obcí, měst, správy památek a turistiky včetně financování Horské služby. Změna se promítne do dalších adekvátních ukazatelů.  ",5000000000,null,{"$f":"SUM(F57:G57)","v":5000000000},null,null,{"$f":"SUM(I57:J57)","v":0},"M. Pošarová",null,5545]
[null,null,333,"Min. školství, mládeže a tělovýchovy","snížit výdaje v kap. 333 Min. školství, mládeže a tělovýchovy v rámci specifického ukazatele \"Výdaje na programy spolufinancované z rozpočtu Evropské unie a z prostředků finančních mechanismů mimo výzkum, vývoj a inovace\" o částku 5 000 000 000 Kč. Změna se promítne do dalších adekvátních ukazatelů.  ",null,null,0,5000000000,null,5000000000]
["21",null,317,"Min. pro místní rozvoj","zvýšit výdaje v kap. 317 Min. pro místní rozvoj v rámci specifického ukazatele \"Podpora regionálního rozvoje a cestovního ruchu\" a \"v tom: Horská služba\" a také \"v tom\" ostatní výdaje na regionální rozvoj a cestovní ruch\" o částku 3 000 000 000 Kč určené na podporu obcí, měst, správy památek a turistiky včetně financování Horské služby. Změna se promítne do dalších adekvátních ukazatelů.  ",3000000000,null,{"$f":"SUM(F59:G59)","v":3000000000},null,null,{"$f":"SUM(I59:J59)","v":0},"M. Pošarová",null,5546]
[null,null,333,"Min. školství, mládeže a tělovýchovy","snížit výdaje v kap. 333 Min. školství, mládeže a tělovýchovy v rámci specifického ukazatele \"Výdaje na programy spolufinancované z rozpočtu Evropské unie a z prostředků finančních mechanismů mimo výzkum, vývoj a inovace\" o částku 3 000 000 000 Kč. Změna se promítne do dalších adekvátních ukazatelů.  ",null,null,{"$f":"SUM(F60:G60)","v":0},3000000000,null,{"$f":"SUM(I60:J60)","v":3000000000}]
["22",null,398,"Všeobecná pokladní správa","zvýšit výdaje v kap. 398 Všeobecná pokladní správa v rámci specifického ukazatele \"Rezerva na řešení krizových situací, jejich předcházení a odstraňování jejich následků (zákon č. 240/2000 Sb., ve znění pozdějších předpisů)\" o částku 3 000 000 000 Kč. Změna se promítne do dalších adekvátních ukazatelů.  ",null,3000000000,{"$f":"SUM(F61:G61)","v":3000000000},null,null,{"$f":"SUM(I61:J61)","v":0},"M. Pošarová",null,5547]
[null,null,333,"Min. školství, mládeže a tělovýchovy","snížit výdaje v kap. 333 Min. školství, mládeže a tělovýchovy v rámci specifického ukazatele \"Výdaje na programy spolufinancované z rozpočtu Evropské unie a z prostředků finančních mechanismů mimo výzkum, vývoj a inovace\" o částku 3 000 000 000 Kč. Změna se promítne do dalších adekvátních ukazatelů.  ",null,null,{"$f":"SUM(F62:G62)","v":0},3000000000,null,{"$f":"SUM(I62:J62)","v":3000000000}]
["23",null,398,"Všeobecná pokladní správa","zvýšit výdaje v kap. 398 Všeobecná pokladní správa v rámci specifického ukazatele \"Rezerva na řešení krizových situací, jejich předcházení a odstraňování jejich následků (zákon č. 240/2000 Sb., ve znění pozdějších předpisů)\" o částku 2 000 000 000 Kč. Změna se promítne do dalších adekvátních ukazatelů.  ",null,2000000000,{"$f":"SUM(F63:G63)","v":2000000000},null,null,{"$f":"SUM(I63:J63)","v":0},"M. Pošarová",null,5548]
[null,null,333,"Min. školství, mládeže a tělovýchovy","snížit výdaje v kap. 333 Min. školství, mládeže a tělovýchovy v rámci specifického ukazatele \"Výdaje na programy spolufinancované z rozpočtu Evropské unie a z prostředků finančních mechanismů mimo výzkum, vývoj a inovace\" o částku 2 000 000 000 Kč. Změna se promítne do dalších adekvátních ukazatelů.  ",null,null,0,2000000000,null,2000000000]
["24",null,321,"Grantová agentura ČR","zvýšit výdaje v kap. 321 Grantová agentura v rámci specifického ukazatele \"Dotace jiným subjektům\" o částku 481 300 000 Kč a dále se o tuto částku zvyšuje průřezový ukazatel \"Výdaje na výzkum, vývoj a inovace celkem včetně programů spolufinancovaných z prostředků zahraničních programů\" a \"v tom: ze státního rozpočtu celkem\" a \"v tom: účelová podpora celkem\" s účelem navýšit rozpočet o 10% na projekty v rámci mezinárodní skupiny, juniorské projekty a LA granty. Změna se promítne do dalších adekvátních ukazatelů.  ",481300000,null,481300000,null,null,0,"J. Špičák, V. Adámková, K. Havlíček, S. Fridrich",null,5599]
[null,null,398,"Všeobecná pokladní správa","snížit výdaje v kap. 398 Všeobecná pokladní správa v rámci specifického ukazatele \"Vládní rozpočtová rezerva\" o částku 481 300 000 Kč. Změna se promítne do dalších adekvátních ukazatelů.  ",null,null,0,null,481300000,481300000]
["25",null,361,"Akademie věd ČR","zvýšit výdaje v kap. 361 Akademie věd ČR v rámci specifického ukazatele \"Infrastruktura výzkumu\" o částku 795 243 264 Kč a zároveň se o tuto částku zvyšuje průřezový ukazatel \"Výdaje na výzkum, vývoj a inovace celkem včetně programů spolufinancovaných z prostředků zahraničních programů\" a \"v tom: ze státního rozpočtu celkem\" a \"v tom: institucionální podpora celkem\" s účelem navýšit rozpočet o 10%.  Změna se promítne do dalších adekvátních ukazatelů.  ",795243264,null,795243264,null,null,0,"J. Špičák, V. Adámková, K. Havlíček, S. Fridrich",null,5600]
[null,null,398,"Všeobecná pokladní správa","snížit výdaje v kap. 398 Všeobecná pokladní správa v rámci specifického ukazatele \"Vládní rozpočtová rezerva\" o částku 795 243 264 Kč. Změna se promítne do dalších adekvátních ukazatelů.  ",null,null,0,null,795243264,795243264]
["26",null,377,"Technologická agentura ČR","zvýšit výdaje v kap. 377 Technologická agentura v rámci specifického ukazatele \"Dotace jiným subjektům\" o částku 659 582 707 Kč a zároveň se o tuto částku zvyšuje průřezový ukazatel \"Výdaje na výzkum, vývoj a inovace celkem včetně programů spolufinancovaných z prostředků zahraničních programů\" a \"v tom: ze státního rozpočtu celkem\" a \"v tom: účelová podpora celkem\" s účelem zvýšit rozpočet  o cca 10%. Změna se promítne do dalších adekvátních ukazatelů.  ",659582707,null,659582707,null,null,0,"J. Špičák, V. Adámková, K. Havlíček, S. Fridrich",null,5601]
[null,null,398,"Všeobecná pokladní správa","snížit výdaje v kap. 398 Všeobecná pokladní správa v rámci specifického ukazatele \"Vládní rozpočtová rezerva\" o částku 659 582 707 Kč. Změna se promítne do dalších adekvátních ukazatelů.  ",null,null,0,null,659582707,659582707]
["27",null,333,"Min. školství, mládeže a tělovýchovy","zvýšit výdaje v kap. 333 Min. školství, mládeže a tělovýchovy v rámci specifického ukazatele \"Věda a vysoké školy\" a \"v tom: vysoké školy\" o částku 2 000 000 000 Kč určené na dokrytí reálného poklesu platů mezi lety 2021-2023 ve vysokoškolské sféře. Změna se promítne do dalších adekvátních ukazatelů.  ",2000000000,null,2000000000,null,null,0,"K. Rais",null,5553]
[null,null,398,"Všeobecná pokladní správa","snížit výdaje v kap. 398 Všeobecná pokladní správa v rámci specifického ukazatele \"Vládní rozpočtová rezerva\" o částku 1 000 000 000 Kč. Změna se promítne do dalších adekvátních ukazatelů.  ",null,null,0,null,1000000000,1000000000]
[null,null,396,"Státní dluh","snížit výdaje v kap. 396 Státní dluh v rámci specifického ukazatele \"Obsluha státního dluhu\" o částku 1 000 000 000 Kč. Změna se promítne do dalších adekvátních ukazatelů.  ",null,null,0,1000000000,null,1000000000]
["28",null,333,"Min. školství, mládeže a tělovýchovy","zvýšit výdaje v kap. 333 Min. školství, mládeže a tělovýchovy v rámci specifického ukazatele \"Věda a vysoké školy\" a \"v tom: výzkum, experimentální vývoj a inovace\" o částku 2 000 000 000 Kč určené na specifický výzkum zahrnutý do účelové podpory VVI a na náklady na studenty doktorského studia. Změna se promítne do dalších adekvátních ukazatelů.  ",2000000000,null,2000000000,null,null,0,"K. Rais",null,5554]
[null,null,398,"Všeobecná pokladní správa","snížit výdaje v kap. 398 Všeobecná pokladní správa v rámci specifického ukazatele \"Vládní rozpočtová rezerva\" o částku 1 000 000 000 Kč. Změna se promítne do dalších adekvátních ukazatelů.  ",null,null,{"$f":"SUM(F75:G75)","v":0},null,1000000000,{"$f":"SUM(I75:J75)","v":1000000000}]
[null,null,396,"Státní dluh","snížit výdaje v kap. 396 Státní dluh v rámci specifického ukazatele \"Obsluha státního dluhu\" o částku 1 000 000 000 Kč. Změna se promítne do dalších adekvátních ukazatelů.  ",null,null,0,1000000000,null,1000000000]
["29",null,333,"Min. školství, mládeže a tělovýchovy","zvýšit výdaje v kap. 333 Min. školství, mládeže a tělovýchovy v rámci specifického ukazatele \"Výdaje regionálního školství a přímo řízených organizací\" o částku 1 143 076 658 Kč určenou na tzv. ONIV = ostatní neinvestiční výdaje z nichž se hradí prostředky na pomůcky a učebnice pro žáky aj. Změna se promítne do dalších adekvátních ukazatelů.  ",{"$f":"1143076658","v":1143076658},null,{"$f":"SUM(F77:G77)","v":1143076658},null,null,{"$f":"SUM(I77:J77)","v":0},"K. Rais, J. Berkovcová",null,5555]
[null,null,398,"Všeobecná pokladní správa","snížit výdaje v kap. 398 Všeobecná pokladní správa v rámci specifického ukazatele \"Vládní rozpočtová rezerva\" o částku 1 000 000 000 Kč. Změna se promítne do dalších adekvátních ukazatelů.  ",null,null,0,null,1000000000,1000000000]
[null,null,396,"Státní dluh","snížit výdaje v kap. 396 Státní dluh v rámci specifického ukazatele \"Obsluha státního dluhu\" o částku 143 076 658 Kč. Změna se promítne do dalších adekvátních ukazatelů.  ",null,null,0,143076658,null,143076658]
["30",null,333,"Min. školství, mládeže a tělovýchovy","zvýšit výdaje v kap. 333 Min. školství, mládeže a tělovýchovy v rámci specifického ukazatele \"Výdaje regionálního školství a přímo řízených organizací\" o částku 2 400 000 000 Kč na Soukromé školství - normativní financování (PVS 502 001 0016) s určením na financování soukromého školství včetně soukromých mateřškých škol. Změna se promítne do dalších adekvátních ukazatelů.  ",2400000000,null,2400000000,null,null,0,"K. Rais",null,5560]
[null,null,398,"Všeobecná pokladní správa","snížit výdaje v kap. 398 Všeobecná pokladní správa v rámci specifického ukazatele \"Vládní rozpočtová rezerva\" o částku 1 000 000 000 Kč. Změna se promítne do dalších adekvátních ukazatelů.  ",null,null,0,null,1000000000,1000000000]
[null,null,396,"Státní dluh","snížit výdaje v kap. 396 Státní dluh v rámci specifického ukazatele \"Obsluha státního dluhu\" o částku 1 400 000 000 Kč. Změna se promítne do dalších adekvátních ukazatelů.  ",null,null,0,1400000000,null,1400000000]
["31",null,334,"Ministerstvo kultury","zvyšit výdaje v kap. 334 Min. kultury v rámci specifického ukazatele „Záchrana a obnova kulturních památek, veřejné služby muzeí\" a \"v tom: programy na záchranu a obnovu kulturních památek“ o částku 500 000 000 Kč. Změna se promítne do dalších adekvátních ukazatelů. ",500000000,null,500000000,null,null,0,"K. Maříková",null,5265]
[null,null,306,"Min. zahraničních věcí","snížit výdaje v kap. 306 Ministerstva zahraničních věcí v rámci specifického ukazatele „Výdaje na plnění úkolů Ministerstva zahraničních věcí\" a \"v tom: program humanitární, stabilizační, rozvojové a hospodářské asistence Ukrajině“ o částku 500 000 000 Kč. Změna se promítne do dalších adekvátních ukazatelů. ",null,null,0,500000000,null,500000000]
["32",null,335,"Ministerstvo zdravotnictví","zvýšit výdaje v kap. 335 Ministerstva zdravotnictví v rámci specifického ukazatele „Výzkum a vývoj ve zdravotnictví“ o částku 800 000 000 Kč. Změna se promítne do dalších adekvátních ukazatelů.  ",800000000,null,800000000,null,null,0,"K. Maříková",null,5266]
[null,null,398,"Všeobecná pokladní správa","snížit výdaje v kap. 398 Všeobecná pokladní správa v rámci specifického ukazatele  „Odvody do rozpočtu Evropské unie“ o částku 800 000 000 Kč. Změna se promítne do dalších adekvátních ukazatelů.  ",null,null,0,null,800000000,800000000,null,"Tato změna se promítne do textové části zákona a dalších adekvátních ukazatelů."]
["33",null,314,"Ministerstvo vnitra","zvýšit výdaje v kap. 314 Ministerstva vnitra v rámci specifického ukazatele „Výdaje Policie ČR“ o částku 900 000 000 Kč určené ke zlepšení bezpečnostní situace v ČR. Změna se promítne do dalších adekvátních ukazatelů.  ",900000000,null,{"$f":"SUM(F87:G87)","v":900000000},null,null,{"$f":"SUM(I87:J87)","v":0},"K. Maříková",null,5279]
[null,null,398,"Všeobecná pokladní správa","snížit výdaje v kap. 398 Všeobecná pokladní správa v rámci specifického ukazatele  „Odvody do rozpočtu Evropské unie“ o částku 900 000 000 Kč. Změna se promítne do dalších adekvátních ukazatelů.  ",null,null,0,null,900000000,900000000,null,"Tato změna se promítne do textové části zákona a dalších adekvátních ukazatelů."]
["34",null,313,"Min. práce a soc. věcí","zvýšit výdaje v kap. 313 Min. práce a sociálních věcí v rámci specifického ukazatele „Dávky důchodového pojištění“ o částku 5 300 000 000 Kč. Změna se promítne do dalších adekvátních ukazatelů.  ",5300000000,null,{"$f":"SUM(F89:G89)","v":5300000000},null,null,{"$f":"SUM(I89:J89)","v":0},"K. Maříková",null,5280]
[null,null,398,"Všeobecná pokladní správa","snížit výdaje v kap. 398 Všeobecná pokladní správa v rámci specifického ukazatele  „Odvody do rozpočtu Evropské unie“ o částku 5 300 000 000 Kč. Změna se promítne do dalších adekvátních ukazatelů.  ",null,null,{"$f":"SUM(F90:G90)","v":0},null,5300000000,{"$f":"SUM(I90:J90)","v":5300000000},null,"Tato změna se promítne do textové části zákona a dalších adekvátních ukazatelů."]
["35",null,313,"Min. práce a soc. věcí","zvýšit výdaje v kap. 313 Min. práce a sociálních věcí v rámci specifického ukazatele „Dávky osobám se zdravotním postižením“ o částku 1 800 000 000 Kč. Změna se promítne do dalších adekvátních ukazatelů.  ",1800000000,null,{"$f":"SUM(F91:G91)","v":1800000000},null,null,{"$f":"SUM(I91:J91)","v":0},"K. Maříková",null,5281]
[null,null,398,"Všeobecná pokladní správa","snížit výdaje v kap. 398 Všeobecná pokladní správa v rámci specifického ukazatele  „Odvody do rozpočtu Evropské unie“ o částku 1 800 000 000 Kč. Změna se promítne do dalších adekvátních ukazatelů.  ",null,null,0,null,1800000000,1800000000,null,"Tato změna se promítne do textové části zákona a dalších adekvátních ukazatelů."]
["36",null,314,"Ministerstvo vnitra","zvýšit výdaje v kap. 314 Ministerstva vnitra v rámci specifického ukazatele „Výdaje Hasičského záchranného sboru ČR“ , o částku 1 900 000 000 Kč s cílem posílit vybavení, výcvik a personální zajištění k posílení vnitřní bezpečnosti státu. Změna se promítne do dalších adekvátních ukazatelů.  ",1900000000,null,{"$f":"SUM(F93:G93)","v":1900000000},null,null,{"$f":"SUM(I93:J93)","v":0},"K. Maříková",null,5282]
[null,null,398,"Všeobecná pokladní správa","snížit výdaje v kap. 398 Všeobecná pokladní správa v rámci specifického ukazatele  „Odvody do rozpočtu Evropské unie“ o částku 1 900 000 000 Kč.  Změna se promítne do dalších adekvátních ukazatelů.  ",null,null,{"$f":"SUM(F94:G94)","v":0},null,1900000000,{"$f":"SUM(I94:J94)","v":1900000000},null,"Tato změna se promítne do textové části zákona a dalších adekvátních ukazatelů."]
["37",null,336,"Min. spravedlnosti ","zvýšit výdaje v kap. 336 Min. spravedlnosti v rámci specifického ukazatele \"Výdajový blok - Výdaje vězeňská část\" a \"v tom: ostatní výdaje vězeňské části\" o částku 210 000 000 Kč s určením na plánované opravy a údržbu zejména nemovitého majetku a ostatní věcné výdaje. Změna se promítne do dalších adekvátních ukazatelů.  ",210000000,null,{"$f":"SUM(F95:G95)","v":210000000},null,null,{"$f":"SUM(I95:J95)","v":0},"P. Sadovský, M. Ratiborský, T. Helebrant, D. Ryba, R. Králíček",null,5574]
[null,null,398,"Všeobecná pokladní správa","snížit výdaje v kap. 398 Všeobecná pokladní správa v rámci specifického ukazatele \"Vládní rozpočtová rezerva\" o částku 210 000 000 Kč. Změna se promítne do dalších adekvátních ukazatelů.  ",null,null,0,null,210000000,210000000]
["38",null,317,"Min. pro místní rozvoj","zvýšit výdaje v kap. 317 Min. pro místní rozvoj v rámci specifického ukazatele \"Podpora bydlení\" a \"v tom: ostatní výdaje na podporu bydlení\" o částku 1 500 000 000 Kč a dále v rámci specifického ukazatele \"Podpora regionálního rozvoje a cestovního ruchu\" a \"v tom: ostatní výdaje na regionální rozvoj a cestovní ruch\" o částku 2 500 000 000 Kč s určením na podporu bydlení a IROP/školy. Změna se promítne do dalších adekvátních ukazatelů.  ",4000000000,null,{"$f":"SUM(F97:G97)","v":4000000000},null,null,{"$f":"SUM(I97:J97)","v":0},"J. Michálek, K. Kocmanová, O. Richterová, I. Bartoš",null,5639]
[null,null,313,"Min. práce a soc. věcí","zvýšit výdaje v kap. 313 Min. práce a soc. věcí v rámci specifického ukazatele \"Dávky státní sociální podpory a pěstounské péče\" o částku 550 000 000 Kč a dále v rámci specifického ukazatele \"Ostatní výdaje organizačních složek státu\" o částku 315 000 000 Kč k podpoření rodičovského příspěvku a dětských skupin.  Změna se promítne do dalších adekvátních ukazatelů.  ",{"$f":"550000000+315000000","v":865000000},null,865000000,null,null,0]
[null,null,333,"Min. školství, mládeže a tělovýchovy","zvýšit výdaje v kap. 333 Min. školství, mládeže a tělovýchovy v rámci specifického ukazatele \"Výdaje regionálního školství a přímo řízených organizací\" o částku 1 650 000 000 Kč s určením na zajištění platů učitelů na 130% průměrné mzdy a dostatku školních psychologů. Změna se promítne do dalších adekvátních ukazatelů.  ",1650000000,null,1650000000,null,null,0]
[null,null,304,"Úřad vlády ČR","zvýšit výdaje v kap. 304 Úřad vlády v rámci specifického ukazatele \"Výdaje na zabezpečení úkolů Úřadu vlády ČR\" a \"v tom: výdaje vlastního Úřadu vlády ČR\" o částku 140 000 000 Kč s určením na prevenci závislostí a strategickou komunikaci. Změna se promítne do dalších adekvátních ukazatelů.  ",140000000,null,140000000,null,null,0]
[null,null,336,"Min. spravedlnosti","zvýšit výdaje v kap. 336 Min. spravedlnosti v rámci specifického ukazatele \"Výdajový blok - Výdaje justiční část\" a \"v tom: ostatní výdaje justiční části\" o částku 6 000 000 Kč s určením pro Odbor střetu zájmů a boje proti korupci.  Změna se promítne do dalších adekvátních ukazatelů.  ",6000000,null,6000000,null,null,0]
[null,null,322,"Min. průmyslu a obchodu","snížit výdaje v kap. 322 Min. průmyslu a obchodu v rámci specifického ukazatele \"Podpora podnikání\" o částku 4 661 000 000 Kč snížením podnikatelských dotací. Změna se promítne do dalších adekvátních ukazatelů.  ",null,null,0,4661000000,null,4661000000]
[null,null,329,"Min. zemědělství","snížit výdaje v kap. 329 Min. zemědělství v rámci specifického ukazatele \"Podpora agrárního sektoru\" a \"v tom: ostatní výdaje\" o částku 2 000 000 000 Kč snížením národních dotací. Změna se promítne do dalších adekvátních ukazatelů.  ",null,null,0,2000000000,null,2000000000]
["39",null,336,"Min. spravedlnosti","zvýšit výdaje v kap. 336 Min. spravedlnosti v rámci specifického ukazatele \"Výdajový blok - Výdaje justiční části\" a \"v tom: ostatní výdaje justiční části\" o částku 6 357 538 Kč s určením na zřízení 6 systemizovaných míst státních zaměstnanců v souvislosti s přijetím vládního návrhu zákona o lobbování. A dále \"v tom\" ostatní výdaje justiční části\" o částku 2 000 000 Kč s účelem navýšit prostředky dotačního titulu Z3607 Prevence korupčního jednání. Změna se promítne do dalších adekvátních ukazatelů.  ",8357538,null,8357538,null,null,0,"J. Michálek, K. Kocmanová, O. Richterová, I. Bartoš",null,5642]
[null,null,333,"Min. školství, mládeže a tělovýchovy","zvýšit výdaje v kap. 333 Min. školství, mládeže a tělovýchovy v rámci specifického ukazatele \"Ostatní výdaje na zabezpečení úkolů resortu“ o částku 18 000 000 Kč s určením na kvalifikační program NPI - Lídr Školy ve výši 5 000 000 ke zřízení celostátního programu dostupnosti hygienických pomůcek ve školách ve výši 13 000 000 Kč. Změna se promítne do dalších adekvátních ukazatelů.  ",18000000,null,18000000,null,null,0]
[null,null,353,"Úřad pro ochranu hospodářské soutěže","snížit výdaje v kap. 353 Úřad pro ochranu hospodářské soutěže v rámci specifického ukazatele \"Výdaje na zabezpečení plnění úkolů Úřadu pro ochranu hospodářské soutěže\" o částku 26 357 538 Kč. Změna se promítne do dalších adekvátních ukazatelů.  ",null,null,0,26357538,null,26357538]
["40",null,307,"Ministerstvo obrany","zvýšit výdaje v kap. 307 Min. obrany v rámci specifického ukazatele „Zajištění obrany ČR silami Armády ČR“ a výdajového okruhu 501002 \"Zajistit činnost a rozvoj bojových  sil,  sil  bojové podpory a bojového zabezpečení\"   o částku  15 814 418 755 Kč k posílení schopnosti Armády ČR a provést doplnění potřebné výzbroje, techniky a materiálu. Změna se promítne do dalších adekvátních ukazatelů kapitoly.",15814418755,null,15814418755,null,null,0,"R. Vích",null,5296]
[null,null,307,"Ministerstvo obrany","snížit výdaje v kap. 307 Min. obrany v rámci specifického ukazatele „Zajištění obrany ČR silami Armády ČR“ a ve výdajovém okruhu 501002 \"Zajistit činnost a rozvoj bojových  sil,  sil  bojové podpory a bojového zabezpečení\"   o částku 15 814 418 755 Kč, a to tak, že v programu 107 40 se ruší akce:\n i) Udržení a rozvoj schopností nadzvukového letectva II v hodnotě 15 814 418 755 Kč. Změna se promítne do dalších adekvátních ukazatelů kapitoly.\n",null,null,0,15814418755,null,15814418755]
["41",null,334,"Min. kultury","zvýšit výdaje v kap. 334 Min. kultury v rámci specifického ukazatele \"Záchrana a obnova kulturních památek, veřejné služby muzeí\" a \"v tom:programy ochrany a péče o kulturní statky\" o částku 10 000 000 Kč s účelem podpořit dotační program 13453 Akviziční fond pro podporu současného umění. Změna se promítne do dalších adekvátních ukazatelů.  ",10000000,null,{"$f":"SUM(F109:G109)","v":10000000},null,null,{"$f":"SUM(I109:J109)","v":0},"L. Brož, O. Babka",null,5604]
[null,null,398,"Všeobecná pokladní správa","snížit výdaje v kap. 398 Všeobecná pokladní správa v rámci specifického ukazatele \"Vládní rozpočtová rezerva\" o částku 10 000 000 Kč. Změna se promítne do dalších adekvátních ukazatelů.  ",null,null,0,null,10000000,10000000]
["42",null,306,"Min. zahraničních věcí","zvýšit výdaje v kap. 306 Min. zahraničních věcí v rámci specifického ukazatele \"Výdaje na plnění úkolů Ministerstva zahraničních věcí\" a \"v tom: ostatní výdaje na plnění úkolů Ministerstva zahraničních věcí\" o částku 398 401 537 Kč s určením na provoz informačních systémů v ústředí i na zastupitelských úřadech. Změna se promítne do dalších adekvátních ukazatelů.  ",398401537,null,{"$f":"SUM(F111:G111)","v":398401537},null,null,{"$f":"SUM(I111:J111)","v":0},"J. Strýček, R. Brabec, T. Kohoutek, J. Kubík, K. Rais, M. Ratiborský, R. Vondráček",null,5587]
[null,null,398,"Všeobecná pokladní správa","snížit výdaje v kap. 398 Všeobecná pokladní správa v rámci specifického ukazatele \"Vládní rozpočtová rezerva\" o částku 398 401 537 Kč. Změna se promítne do dalších adekvátních ukazatelů.  ",null,null,0,null,398401537,398401537]
["43",null,306,"Min. zahraničních věcí","zvýšit výdaje v kap. 306 Min. zahraničních věcí v rámci specifického ukazatele \"Výdaje na plnění úkolů Ministerstva zahraničních věcí\" a \"v tom: ostatní výdaje na plnění úkolů Ministerstva zahraničních věcí\" o částku 178 478 588 Kč s určením na podpoření ekonomické a vědecké diplomacie.  Změna se promítne do dalších adekvátních ukazatelů.  ",178478588,null,178478588,null,null,0,"J. Strýček, R. Brabec, T. Kohoutek, J. Kubík, K. Rais, M. Ratiborský, R. Vondráček",null,5588]
[null,null,398,"Všeobecná pokladní správa","snížit výdaje v kap. 398 Všeobecná pokladní správa v rámci specifického ukazatele \"Vládní rozpočtová rezerva\" o částku 178 478 588 Kč. Změna se promítne do dalších adekvátních ukazatelů.  ",null,null,0,null,178478588,178478588]
["44",null,306,"Min. zahraničních věcí","zvýšit výdaje v kap. 306 Min. zahraničních věcí v rámci specifického ukazatele \"Výdaje na plnění úkolů Ministerstva zahraničních věcí\" a \"v tom: ostatní výdaje na plnění úkolů Ministerstva zahraničních věcí\" o částku 3 740 299 Kč a zároveň se o tuto částku zvyšuje průřezový ukazatel \"Výdaje na výzkum, vývoj a inovace celkem včetně programů spolufinancovaných z prostředků zahraničních programů\" a \"v tom: ze státního rozpočtu celkem\" a \"v tom: institucionální podpora celkem\" s určením na institucionální podporu Ústavu mezinárodních vztahů.  Změna se promítne do dalších adekvátních ukazatelů.  ",3740299,null,3740299,null,null,0,"J. Strýček, R. Brabec, T. Kohoutek, J. Kubík, K. Rais, M. Ratiborský, R. Vondráček",null,5589]
[null,null,398,"Všeobecná pokladní správa","snížit výdaje v kap. 398 Všeobecná pokladní správa v rámci specifického ukazatele \"Vládní rozpočtová rezerva\" o částku 3 740 299 Kč. Změna se promítne do dalších adekvátních ukazatelů.  ",null,null,0,null,3740299,3740299]
["45",null,322,"Min. průmyslu a obchodu","zvýšit výdaje v kap. 322 Min. průmyslu a obchodu v rámci specifického ukazatele \"Podpora podnikání\" o částku 39 000 000 Kč a zároveň se o tuto částku zvyšuje průřezový ukazatel \"Výdaje na výzkum, vývoj a inovace celkem včetně programů spolufinancovaných z prostředků zahraničních programů\" a \"v tom: ze státního rozpočtu celkem\" a \"v tom: institucionální podpora celkem\" s účelem podpořit dlouhodobý koncepční rozvoj výzkumných organizací.  Změna se promítne do dalších adekvátních ukazatelů.  ",39000000,null,39000000,null,null,0,"J. Strýček",null,5594]
[null,null,398,"Všeobecná pokladní správa","snížit výdaje v kap. 398 Všeobecná pokladní správa v rámci specifického ukazatele \"Vládní rozpočtová rezerva\" o částku 39 000 000 Kč. Změna se promítne do dalších adekvátních ukazatelů.  ",null,null,0,null,39000000,39000000]
["46",null,322,"Min. průmyslu a obchodu","zvýšit výdaje v kap. 322 Min. průmyslu a obchodu v rámci specifického ukazatele \"Výdaje spojené s další činností resortu\" o částku 15 000 000 Kč s určením na podporu nevládních neziskových organizací v oblasti ochrany spotřebitele.  Změna se promítne do dalších adekvátních ukazatelů.  ",15000000,null,{"$f":"SUM(F119:G119)","v":15000000},null,null,{"$f":"SUM(I119:J119)","v":0},"P. Nacher",null,5552,"SOUHLAS"]
[null,null,398,"Všeobecná pokladní správa","snížit výdaje v kap. 398 Všeobecná pokladní správa v rámci specifického ukazatele  „Vládní rozpočtová rezerva“ o částku 15 000 000 Kč.  Změna se promítne do dalších adekvátních ukazatelů.  ",null,null,0,null,15000000,15000000]
["47",null,336,"Min. spravedlnosti","zvýšit výdaje v kap. 336 Min. spravedlnosti v rámci specifického ukazatele \"Výdajový blok - Výdaje justiční část\"  a \"v tom: ostatní výdaje justiční části\" o částku 65 852 159 Kč a zároveň se zvyšují o tuto částku průřezové ukazatele \"Platy zaměstnanců a ostatní platby za provedenou práci\" a dále \"Platy zaměstnanců v pracovním poměru vyjma zaměstnanců na služebních místech\" s určením pro zaměstnance Probační a mediační služby. Změna se promítne do dalších adekvátních ukazatelů.  ",65852159,null,{"$f":"SUM(F121:G121)","v":65852159},null,null,{"$f":"SUM(I121:J121)","v":0},"I. Hendrych, H. Válková, R. Vondráček, J. Bělica",null,5597]
[null,null,398,"Všeobecná pokladní správa","snížit výdaje v kap. 398 Všeobecná pokladní správa v rámci specifického ukazatele \"Vládní rozpočtová rezerva\" o částku 65 852 159 Kč. Změna se promítne do dalších adekvátních ukazatelů.  ",null,null,0,null,65852159,65852159]
["48",null,317,"Min. pro místní rozvoj","zvýšit výdaje v kap. 317 Min. pro místní rozvoj v rámci specifického ukazatele \"Podpora bydlení\" a \"v tom: dotace SFPI na podporu bydlení\" o částku 1 000 000 000 Kč s určením na rozvoj bytové politiky, výstavbu, rekonstrukci a k podpoře nonprofitního bydlení. Změna se promítne do dalších adekvátních ukazatelů.  ",1000000000,null,1000000000,null,null,0,"M. Wenzl",null,5606]
[null,null,307,"Min. obrany","snížit výdaje v kap. 307 Min. obrany v rámci specifického ukazatele „Zajištění obrany ČR silami Armády ČR“ o částku 1 000 000 000 Kč. Změna se promítne do dalších adekvátních ukazatelů.  ",null,null,0,1000000000,null,1000000000]
["49",null,333,"Min. školství, mládeže a tělovýchovy","zvýšit výdaje v kap. 333 Min. školství, mládeže a tělovýchovy v rámci specifického ukazatele \"Věda a vysoké školy\" a \"v tom: vysoké školy\" o částku 445 000 000 Kč s určením na odměny mentorům ve zdravotnických zařízeních za výuku povinné odborné praxe. Změna se promítne do dalších adekvátních ukazatelů.  ",445000000,null,445000000,null,null,0,"I. Mádlová, V. Adámková, M. Kukla",null,5578]
[null,null,398,"Všeobecná pokladní správa","snížit výdaje v kap. 398 Všeobecná pokladní správa v rámci specifického ukazatele \"Vládní rozpočtová rezerva\" o částku 445 000 000 Kč. Změna se promítne do dalších adekvátních ukazatelů.  ",null,null,0,null,445000000,445000000]
["50",null,314,"Min. vnitra","zvýšit výdaje v kap. 314 Min. vnitra v rámci specifického ukazatele \"Výdaje Policie ČR\" o částku 775 139 538 Kč a dále specifického ukazatele \"Výdaje Hasičského záchranného sboru ČR\" o částku 191 573 397 Kč a dále specifického ukazatele \"Výdaje na zabezpečení plnění úkolů Ministerstva vnitra a ostatních organizačních složek státu\" o částku 107 318 819 Kč a dále specifického ukazatele \"Výdaje na sportovní reprezentaci\" o částku 3 769 868 Kč.\nZároveň se zvyšují průřezové ukazatele \"Platy zaměstnanců a ostatní platby za provedenou práci\" o částku 772 735 365 Kč a \"Povinné pojistné placené zaměstnavatelem\" o částku 261 184 555 Kč a dále \"Základní příděl fondu kulturních a sociálních potřeb\" o částku 7 727 354 Kč a dále \"Platy zaměstnanců v pracovním poměru vyjma zaměstnanců na služebních místech\" o částku 99 470 470 Kč a \"Platy zaměstnanců bezpečnostních sborů a ozbrojených sil ve služebním poměru\" o částku 640 684 468 Kč a dále \"Platy zaměstnanců na služebních místech dle zákona o státní službe\" o částku 32 580 427 Kč s určením na posílení prostředků na platy a příslušenství o 1,9% na celkovou úroveň 6,9% pro zaměstnance resortu. Změna se promítne do dalších adekvátních ukazatelů.  ",1077801622,null,{"$f":"SUM(F127:G127)","v":1077801622},null,null,{"$f":"SUM(I127:J127)","v":0},"P. Letocha",null,5612,"SOUHLAS"]
[null,null,314,"Min. vnitra","snížit výdaje v kap. 314 Min. vnitra v rámci specifického ukazatele \"Ostatní sociální dávky\" o částku 1 077 801 622 Kč. Změna se promítne do dalších adekvátních ukazatelů.  ",null,null,0,1077801622,null,1077801622]
["51",null,398,"Všeobecná pokladní správa","zvýšit výdaje v kap. 398 Všeobecná pokladní správa v rámci specifického ukazatele \"Další prostředky pro územní samosprávné celky\" o částku 45 000 000 Kč s určením na úhradu nákladů na nákup zpravodajského modulu České tiskové kanceláře pro místní samosprávy. Změna se promítne do dalších adekvátních ukazatelů.  ",null,45000000,{"$f":"SUM(F129:G129)","v":45000000},null,null,{"$f":"SUM(I129:J129)","v":0},"P. Letocha, P. Staněk, J. Bureš, ",null,5641]
[null,null,398,"Všeobecná pokladní správa","snížit výdaje v kap. 398 Všeobecná pokladní správa v rámci specifického ukazatele \"Vládní rozpočtová rezerva\" o částku 45 000 000 Kč. Změna se promítne do dalších adekvátních ukazatelů.  ",null,null,0,null,45000000,45000000]
["52",null,333,"Min. školství, mládeže a tělovýchovy","zvýšit výdaje v kap. 333 Min. školství, mládeže a tělovýchovy v rámci specifického ukazatele \"Podpora činnosti v oblasti mládeže\" o částku 20 621 848 Kč s účelem podpořit předmětové olympiády a soutěže pro talentovanou mládež a dorovnat alokaci úrovně roku 2024. Změna se promítne do dalších adekvátních ukazatelů.  ",20621848,null,20621848,null,null,0,"L. Knechtová, J. Berkovcová",null,5614]
[null,null,398,"Všeobecná pokladní správa","snížit výdaje v kap. 398 Všeobecná pokladní správa v rámci specifického ukazatele \"Vládní rozpočtová rezerva\" o částku 20 621 848 Kč. Změna se promítne do dalších adekvátních ukazatelů.  ",null,null,0,null,20621848,20621848]
["53",null,314,"Min. vnitra","zvýšit výdaje v kap. 314 Min. vnitra v rámci specifického ukazatele \"Výdaje Hasičského záchranného sboru ČR\" o částku 191 573 397 Kč s účelem navýšit platy HZS ČR o 6,9%. Zároveň se zvyšuje průřezový ukazatel \"Platy zaměstnanců bezpečnostních sborů a ozbrojených sil ve služebním poměru\" o částku 133 564 781 Kč a průřezový ukazatel \"Platy zaměstnanců v pracovním poměru vyjma zaměstnanců na služebních místech\" o částku 8 551 982 Kč a průřezový ukazatel \"Povinné pojistné placené zaměstnavatelem\" o částku 48 035 466 Kč a průřezový ukazatel \"Základní příděl fondu kulturních a sociálních potřeb\" o částku 1 421 168 Kč.  Změna se promítne do dalších adekvátních ukazatelů.  ",{"$f":"133564781+8551982+48035466+1421168","v":191573397},null,191573397,null,null,0,"D. Ryba, H. Lang, J. Mašek, P. Růžička, R. Králíček, P. Sadovský",null,5568]
[null,null,314,"Min. vnitra","zvýšit výdaje v kap. 314 Min. vnitra v rámci specifického ukazatele \"Výdaje Policie ČR\" o částku 775 385 736 Kč s účelem navýšit platy Policie ČR o 6,9%. Zároveň se zvyšuje průřezový ukazatel \"Platy zaměstnanců bezpečnostních sborů a ozbrojených sil ve služebním poměru\" o částku 505 663 376 Kč a průřezový ukazatel \"Platy zaměstnanců v pracovním poměru vyjma zaměstnanců na služebních místech\" o částku 69 548 594 Kč a průřezový ukazatel \"Povinné pojistné placené zaměstnavatelem\" o částku 194 421 646 Kč a průřezový ukazatel \"Základní příděl fondu kulturních a sociálních potřeb\" o částku 5 752 120 Kč.  Změna se promítne do dalších adekvátních ukazatelů.  ",{"$f":"505663376+69548594+194421646+5752120","v":775385736},null,775385736,null,null,0]
[null,null,398,"Všeobecná pokladní správa","snížit výdaje v kap. 398 Všeobecná pokladní správa v rámci specifického ukazatele \"Vládní rozpočtová rezerva\" o částku 966 959 133 Kč. Změna se promítne do dalších adekvátních ukazatelů.  ",null,null,0,null,966959133,966959133]
["54",null,313,"Min. práce a soc. věcí","zvýšit výdaje v kap. 313 Min. práce a soc. věcí v rámci specifického ukazatele \"Neinvestiční nedávkové transfery\" o částku 3 000 000 000 Kč určenou na Státní příspěvek na provoz dětských skupin (PVS 5140060011 a §433900). Změna se promítne do dalších adekvátních ukazatelů.  ",3000000000,null,3000000000,null,null,0,"L. Šafránková",null,5519]
[null,null,322,"Min. průmyslu a obchodu","snížit výdaje v kap. 322 Min. průmyslu a obchodu v rámci specifického ukazatele \"Dotace na obnovitelné zdroje energie\" o částku 3 000 000 000 Kč. Změna se promítne do dalších adekvátních ukazatelů.  ",null,null,0,3000000000,null,3000000000]
["55",null,313,"Min. práce a soc. věcí","zvýšit výdaje v kap. 313 Min. práce a soc. věcí v rámci specifického ukazatele \"Dávky osobám se zdravotním postižením\" o částku 2 000 000 000 Kč určenou na valorizaci příspěvku na mobilitu a pro osoby využívající  přístroje plicní ventilace. Změna se promítne do dalších adekvátních ukazatelů.  ",2000000000,null,2000000000,null,null,0,"L. Šafránková",null,5520]
[null,null,322,"Min. průmyslu a obchodu","snížit výdaje v kap. 322 Min. průmyslu a obchodu v rámci specifického ukazatele \"Dotace na obnovitelné zdroje energie\" o částku 2 000 000 000 Kč. Změna se promítne do dalších adekvátních ukazatelů.  ",null,null,0,2000000000,null,2000000000]
["56",null,313,"Min. práce a soc. věcí","zvýšit výdaje v kap. 313 Min. práce a soc. věcí v rámci specifického ukazatele \"Dávky důchodového pojištění\" o částku 20 000 000 000 Kč s účelem valorizovat důchody. Změna se promítne do dalších adekvátních ukazatelů.  ",20000000000,null,20000000000,null,null,{"$f":"SUM(I140:J140)","v":0},"L. Šafránková",null,5521]
[null,null,398,"Všeobecná pokladní správa","snížit výdaje v kap. 398 Všeobecná pokladní správa v rámci specifického ukazatele  „Odvody do rozpočtu Evropské unie“ o částku 20 000 000 000 Kč.  Změna se promítne do dalších adekvátních ukazatelů.  ",null,null,0,null,20000000000,{"$f":"SUM(I141:J141)","v":20000000000},null,"Tato změna se promítne do textové části zákona a dalších adekvátních ukazatelů."]
["57",null,313,"Min. práce a soc. věcí","zvýšit výdaje v kap. 313 Min. práce a soc. věcí v rámci specifického ukazatele \"Příspěvek na péči podle zákona o sociálních službách\" o částku 5 000 000 000 Kč s účelem zvýšit příspěvek zejména v prvním stupni závislosti. Změna se promítne do dalších adekvátních ukazatelů.  ",5000000000,null,{"$f":"SUM(F142:G142)","v":5000000000},null,null,0,"L. Šafránková",null,5522]
[null,null,333,"Min. školství, mládeže a tělovýchovy","snížit výdaje v kap. 333 Min. školství, mládeže a tělovýchovy v rámci specifického ukazatele \"Výdaje na programy spolufinancované z rozpočtu Evropské unie a z prostředků finančních mechanismů mimo výzkum, vývoj a inovace\" o částku 5 000 000 000 Kč. Změna se promítne do dalších adekvátních ukazatelů.  ",null,null,0,5000000000,null,5000000000]
["58",null,313,"Min. práce a soc. věcí","zvýšit výdaje v kap. 313 Min. práce a soc. věcí v rámci specifického ukazatele \"Dávky státní sociální podpory a pěstounské péče\" o částku 300 000 000 Kč s účelem zvýšit o tuto část okruh Dávky pěstounské péče. Změna se promítne do dalších adekvátních ukazatelů.  ",300000000,null,{"$f":"SUM(F144:G144)","v":300000000},null,null,{"$f":"SUM(I144:J144)","v":0},"L. Šafránková",null,5523]
[null,null,304,"Úřad vlády ČR","snížit výdaje v kap. 304 Úřad vlády České republiky v rámci specifického ukazatele \"Výdaje na zabezpečení úkolů Úřadu vlády ČR\" a \"v tom: výdaje spojené s činností poradních orgánů vlády\" o částku 300 000 000 Kč. Změna se promítne do dalších adekvátních ukazatelů.  ",null,null,0,300000000,null,300000000]
["59",null,313,"Min. práce a soc. věcí","zvýšit výdaje v kap. 313 Min. práce a soc. věcí v rámci specifického ukazatele \"Ostatní výdaje organizačních složek státu\" o částku 600 000 000 Kč a zároveň se o tuto částku zvyšuje průřezový ukazatel \"Platy zaměstnanců a ostatní platby za provedenou práci\" určenou na platy pracovníků v sociálních službách. Změna se promítne do dalších adekvátních ukazatelů.  ",600000000,null,600000000,null,null,0,"L. Šafránková, R. Rozvoral",null,5524]
[null,null,306,"Min. zahraničních věcí","snížit výdaje v kap. 306 Min. zahraničních věcí v rámci průřezového ukazatele \"Zahraniční rozvojová spolupráce\" o částku 600 000 000 Kč. Změna se promítne do dalších adekvátních ukazatelů.  ",null,null,0,600000000,null,600000000]
["60",null,313,"Min. práce a soc. věcí","zvýšit výdaje v kap. 313 Min. práce a soc. věcí v rámci specifického ukazatele \"Dávky státní sociální podpory a pěstounské péče\" o částku 2 000 000 000 Kč s účelem zvýšit o tuto část okruh Dávky státní sociální podpory určenou zejména pro Rodičovský příspěvek (§413400), Přídavek na dítě (§413100) a Porodné (§413300). Změna se promítne do dalších adekvátních ukazatelů.  ",2000000000,null,2000000000,null,null,0,"L. Šafránková",null,5525]
[null,null,364,"Digitální a informační agentura","snížit výdaje v kap. 364 Digitální a informační agentura v rámci specifického ukazatele \"Výdaje na zabezpečení plnění úkolů Digitální a informační agentury\" o částku 2 000 000 000 Kč. Změna se promítne do dalších adekvátních ukazatelů.  ",null,null,0,2000000000,null,2000000000]
["61",null,398,"Všeobecná pokladní správa","zvýšit výdaje v kap. 398 Všeobecná pokladní správa v rámci specifického ukazatele \"Sociální výdaje; náhrady; neziskové a podobné organizace\" o částku 10 000 000 Kč, příčemž se zde zřizuje položka \"Český svaz bojovníků za svobodu\" s částkou 5 000 000 Kč a dále položka \"Československá obec legionářská\" s částkou 5 000 000 Kč. Tato změna se promítne i do přílohy č. 9 zákona a do dalších adekvátních ukazatelů.",null,10000000,10000000,null,null,0,"J. Kobza","Tato změna se promítne i do přílohy č. 9 zákona a do dalších adekvátních ukazatelů.",5514]
[null,null,398,"Všeobecná pokladní správa","snížit výdaje v kap. 398 Všeobecná pokladní správa v rámci specifického ukazatele  „Odvody do rozpočtu Evropské unie“ o částku 10 000 000 Kč.  Změna se promítne do dalších adekvátních ukazatelů.  ",null,null,0,null,10000000,10000000,null,"Tato změna se promítne do textové části zákona a dalších adekvátních ukazatelů."]
["62",null,398,"Všeobecná pokladní správa","zvýšit výdaje v kap. 398 Všeobecná pokladní správa v rámci specifického ukazatele \"Rezerva na řešení krizových situací, jejich předcházení a odstraňování jejich následků (zákon č. 240/2000 Sb., ve znění poudějších předpisů)\" o částku 1 000 000 000 Kč a dále zvýšit specifický ukazatel \"Rezerva na mimořádné výdaje podle zákona č. 239/2000 Sb., o integrovaném záchranném systému\" o částku 500 000 000 Kč. Změna se promítne do dalších adekvátních ukazatelů.  ",null,1500000000,1500000000,null,null,0,"J. Kobza",null,5515]
[null,null,306,"Min. zahraničních věcí","snížit výdaje v kap. 306 Ministerstva zahraničních věcí v rámci specifického ukazatele „Výdaje na plnění úkolů Ministerstva zahraničních věcí\" a \"v tom: příspěvky mezinárodním organizacím a peněžní dary vybraným institucím do zahraničí\" o částku 1 500 000 000 Kč. Změna se promítne do dalších adekvátních ukazatelů.  ",null,null,0,1500000000,null,1500000000]
["63",null,398,"Všeobecná pokladní správa","zvýšit výdaje v kap. 398 Všeobecná pokladní správa v rámci specifického ukazatele  „Vládní rozpočtová rezerva“ o částku 500 000 000 Kč. Změna se promítne do dalších adekvátních ukazatelů. \n\n",null,500000000,500000000,null,null,0,"J. Kobza",null,5516]
[null,null,306,"Min. zahraničních věcí","snížit výdaje v kap. 306 Ministerstva zahraničních věcí v rámci specifického ukazatele „Výdaje na plnění úkolů Ministerstva zahraničních věcí\" a \"v tom: program humanitární, stabilizační, rozvojové a hospodářské asistence Ukrajině\" o částku 500 000 000 Kč. Změna se promítne do dalších adekvátních ukazatelů.  ",null,null,0,500000000,null,500000000]
["64",null,398,"Všeobecná pokladní správa","zvýšit výdaje v kap. 398 Všeobecná pokladní správa v rámci specifického ukazatele \"Rezerva na mimořádné výdaje podle zákona č. 239/2000 Sb., o integrovaném záchranném systému\" o částku 100 000 000 Kč. Změna se promítne do dalších adekvátních ukazatelů.  ",null,100000000,100000000,null,null,0,"J. Kobza",null,5517]
[null,null,306,"Min. zahraničních věcí","snížit výdaje v kap. 306 Ministerstva zahraničních věcí v rámci specifického ukazatele „Výdaje na plnění úkolů Ministerstva zahraničních věcí\" a \"v tom: transformační spolupráce\" o částku 100 000 000 Kč. Změna se promítne do dalších adekvátních ukazatelů.  ",null,null,0,100000000,null,100000000]
["65",null,362,"Národní sportovní agentura","zvýšit výdaje v kap. 362 Národní sportovní agentura v rámci specifického ukazatele \"Dotace do oblasti sportu\" a \"v tom: rozvoj a podpora sportu\" o částku 2 000 000 000 Kč s tím, že se zároveň zvyšuje průřezový ukazatel \"Výdaje vedené v informačním systému programového financování EDS/SMVS celkem\" o částku 1 500 000 000 Kč s účelem posílit investice do sportovní infrastruktury a dále k pokrytí poplatků z dohod a dobrovolnickou práci. Změna se promítne do dalších adekvátních ukazatelů.  ",2000000000,null,{"$f":"SUM(F158:G158)","v":2000000000},null,null,{"$f":"SUM(I158:J158)","v":0},"J. Richter, A. Babiš",null,5610]
[null,null,327,"Min. dopravy ","snížit výdaje v kap 327. Min dopravy v rámci specifického ukazatele \"Dotace pro Státní fond dopravní infrastruktury\" a \"v tom: ostatní dotace pro Státní fond dopravní infrastruktury\" o částku 2 000 000 000 Kč a zároveň se o tuto částku snižuje průřezový ukazatel \"Výdaje vedené v informačním systému programového financování EDS/SMVS celkem\". Změna se promítne do dalších adekvátních ukazatelů.  ",null,null,{"$f":"SUM(F159:G159)","v":0},2000000000,null,{"$f":"SUM(I159:J159)","v":2000000000}]
["66",null,329,"Min. zemědělství","zvýšit výdaje v kap. 329 Min. zemědělství v rámci specifického ukazatele \"Podpora agrárního sektoru\" a \"v tom: dotace Státnímu zemědělskému intervenčnímu fondu\" o částku 1 000 000 000 Kč s účelem navýšit dotace směřující ke stabilitě venkovského prostoru.  Změna se promítne do dalších adekvátních ukazatelů.  ",1000000000,null,{"$f":"SUM(F160:G160)","v":1000000000},null,null,{"$f":"SUM(I160:J160)","v":0},"M. Balaštíková, J. Kott,  J. Faltýnek, D. Pražák, K. Tureček, J. Volný",null,5563]
[null,null,398,"Všeobecná pokladní správa","snížit výdaje v kap. 398 Všeobecná pokladní správa v rámci specifického ukazatele \"Vládní rozpočtová rezerva\" o částku 1 000 000 000 Kč. Změna se promítne do dalších adekvátních ukazatelů.  ",null,null,0,null,1000000000,1000000000]
["67",null,329,"Min. zemědělství","zvýšit výdaje v kap. 329 Min. zemědělství v rámci specifického ukazatele \"Podpora agrárního sektoru\" a \"v tom: dotace Státnímu zemědělskému intervenčnímu fondu\" o částku 450 000 000 Kč s určením na podporu konkurenceschopnosti zemědělsko-potravinářského průmyslu a znovuzařazení dotačního titulu 13 do národních podpor zemědělství. Změna se promítne do dalších adekvátních ukazatelů.  ",450000000,null,450000000,null,null,0,"M. Balaštíková, J. Faltýnek, J. Kott, D. Pražák, K. Tureček, J. Volný",null,5617]
[null,null,398,"Všeobecná pokladní správa","snížit výdaje v kap. 398 Všeobecná pokladní správa v rámci specifického ukazatele \"Vládní rozpočtová rezerva\" o částku 450 000 000 Kč. Změna se promítne do dalších adekvátních ukazatelů.  ",null,null,0,null,450000000,450000000]
["68",null,335,"Min. zdravotnictví","zvýšit výdaje v kap. 335 Min. zdravotnictví v rámci specifického ukazatele \"Výzkum a vývoj ve zdravotnictví\" o částku 200 000 000 Kč určenou na praktický výzkum a především na obnovení výroby léků na území ČR.  Změna se promítne do dalších adekvátních ukazatelů.  ",200000000,null,200000000,null,null,0,"I. Štefanová",null,5538]
[null,null,306,"Min. zahraničních věcí","snížit výdaje v kap. 306 Min. zahraničních věcí v rámci specifického ukazatele \"Výdaje na plnění úkolů Ministerstva zahraničních věcí\" a \"v tom: program humanitární, stabilizační, rozvojové a hospodářské asistence Ukrajině\" o částku 200 000 000 Kč. Změna se promítne do dalších adekvátních ukazatelů.  ",null,null,0,200000000,null,200000000]
["69",null,335,"Min. zdravotnictví","zvýšit výdaje v kap. 335 Min. zdravotnictví v rámci specifického ukazatele \"Výzkum a vývoj ve zdravotnictví\" o částku 300 000 000 Kč určenou na praktický výzkum a především na obnovení výroby léků na území ČR.  Změna se promítne do dalších adekvátních ukazatelů.  ",300000000,null,300000000,null,null,0,"I. Štefanová",null,5539]
[null,null,306,"Min. zahraničních věcí","snížit výdaje v kap. 306 Min. zahraničních věcí v rámci specifického ukazatele \"Výdaje na plnění úkolů Ministerstva zahraničních věcí\" a \"v tom: program humanitární, stabilizační, rozvojové a hospodářské asistence Ukrajině\" o částku 300 000 000 Kč. Změna se promítne do dalších adekvátních ukazatelů.  ",null,null,0,300000000,null,300000000]
["70",null,335,"Min. zdravotnictví","zvýšit výdaje v kap. 335 Min. zdravotnictví v rámci specifického ukazatele \"Výzkum a vývoj ve zdravotnictví\" o částku 400 000 000 Kč určenou na praktický výzkum a především na obnovení výroby léků na území ČR.  Změna se promítne do dalších adekvátních ukazatelů.  ",400000000,null,400000000,null,null,0,"I. Štefanová",null,5540]
[null,null,306,"Min. zahraničních věcí","snížit výdaje v kap. 306 Min. zahraničních věcí v rámci specifického ukazatele \"Výdaje na plnění úkolů Ministerstva zahraničních věcí\" a \"v tom: program humanitární, stabilizační, rozvojové a hospodářské asistence Ukrajině\" o částku 400 000 000 Kč. Změna se promítne do dalších adekvátních ukazatelů.  ",null,null,0,400000000,null,400000000]
["71",null,336,"Min. spravedlnosti","zvýšit výdaje v kap. 336 Min. spravedlnosti v rámci průřezového ukazatele \"Platy zaměstnanců v pracovním poměru vyjma zaměstnanců na služebních místech\" o částku 533 361 352 Kč . Cílem je stabilizovat personální situaci v justici a přispět k vyšší bezpečnosti ve věznicích v souladu s usnesením vlády č. 735/2024. Zároveň se také zvyšuje specifický ukazatel „Výdajový blok – Výdaje vězeňská část“ a \"v tom: ostatní výdaje vězeňské části“ o částku 164 878 399 Kč a také specifický ukazatel \"Výdajový blok - Výdaje justiční část\" a \"v tom: ostatní výdaje justiční části\" o částku 368 482 953 Kč. Změny se promítnou do dalších adekvátních ukazatelů.  ",533361352,null,533361352,null,null,0,"V. Munzar",null,5645,"SOUHLAS"]
[null,null,336,"Min. spravedlnosti","snížit výdaje v kap. 336 Min. spravedlnosti v rámci specifického ukazatele „Výdajový blok – Výdaje justiční část“ a \"v tom: platy soudců\" o částku 395 682 352 Kč a dále \"v tom: platy státních zástupců\" o částku 137 679 000 Kč v souladu s usnesením vlády č. 735/2024. Zároveň se také snižuje průřezový ukazatel \"Platy zaměstnanců v pracovním poměru odvozené od platů ústavních činitelů\" o částku 533 361 352 Kč. Zároveň se snižuje specifický ukazatel \"Výdajový blok - Výdaje justiční část\" o částku 164 878 399 Kč. Změny se promítnou do dalších adekvátních ukazatelů.  ",null,null,0,533361352,null,533361352]
["72",null,333,"Min. školství, mládeže a tělovýchovy","zvýšit výdaje v kap. 333 Min. školství, mládeže a tělovýchovy v rámci specifického ukazatele \"Výdaje regionálního školství a přímo řízených organizací\" o částku 1 000 000 000 Kč s určením na financování školních psychologů. Změna se promítne do dalších adekvátních ukazatelů.  ",1000000000,null,1000000000,null,null,0,"J. Berkovcová",null,5623]
[null,null,398,"Všeobecná pokladní správa","snížit výdaje v kap. 398 Všeobecná pokladní správa v rámci specifického ukazatele \"Vládní rozpočtová rezerva\" o částku 1 000 000 000 Kč. Změna se promítne do dalších adekvátních ukazatelů.  ",null,null,0,null,1000000000,1000000000]
["73",null,333,"Min. školství, mládeže a tělovýchovy","zvýšit výdaje v kap. 333 Min. školství, mládeže a tělovýchovy v rámci specifického ukazatele \"Podpora činnosti v oblasti mládeže\" o částku 7 000 000 Kč s účelem podpořit dotace na výchovně-vzdělávací volnočasové aktivity pro děti a mládež. Změna se promítne do dalších adekvátních ukazatelů.  ",7000000,null,7000000,null,null,0,"J. Berkovcová, K. Rais",null,5624]
[null,null,398,"Všeobecná pokladní správa","snížit výdaje v kap. 398 Všeobecná pokladní správa v rámci specifického ukazatele \"Vládní rozpočtová rezerva\" o částku 7 000 000 Kč. Změna se promítne do dalších adekvátních ukazatelů.  ",null,null,0,null,7000000,7000000]
["74",null,333,"Min. školství, mládeže a tělovýchovy","zvýšit výdaje v kap. 333 Min. školství, mládeže a tělovýchovy v rámci specifického ukazatele \"Výdaje regionálního školství a přímo řízených organizací\" o částku 10 000 000 000 Kč s určením na financování nepedagogických pracovníků. Změna se promítne do dalších adekvátních ukazatelů.  ",10000000000,null,{"$f":"SUM(F176:G176)","v":10000000000},null,null,{"$f":"SUM(I176:J176)","v":0},"J. Berkovcová",null,5625]
[null,null,396,"Státní dluh","snížit výdaje v kap. 396 Státní dluh v rámci specifického ukazatele \"Obsluha státního dluhu\" o částku 9 000 000 000 Kč. Změna se promítne do dalších adekvátních ukazatelů.  ",null,null,0,9000000000,null,9000000000]
[null,null,398,"Všeobecná pokladní správa","snížit výdaje v kap. 398 Všeobecná pokladní správa v rámci specifického ukazatele \"Vládní rozpočtová rezerva\" o částku 1 000 000 000 Kč. Změna se promítne do dalších adekvátních ukazatelů.  ",null,null,0,null,1000000000,1000000000]
["75",null,398,"Všeobecná pokladní správa","zvýšit výdaje v kap. 398 Všeobecná pokladní správa v rámci specifického ukazatele  „Vládní rozpočtová rezerva“ o částku 35 000 000 000 Kč určené na kompenzace poplatků za obnovitelné zdroje energie (POZE) a růstu cen regulované složky elektřiny pro domácnosti a firmy a dále zbylé prostředky využít na zvýšení platů nepedagogických pracovníků ve školství a nelékařských pracovníků ve zdravotnictví. Změna se promítne do dalších adekvátních ukazatelů. ",null,35000000000,{"$f":"SUM(F179:G179)","v":35000000000},null,null,{"$f":"SUM(I179:J179)","v":0},"J. Hrnčíř",null,5170]
[null,null,398,"Všeobecná pokladní správa","snížit výdaje v kap. 398 Všeobecná pokladní správa v rámci specifického ukazatele  „Odvody do rozpočtu Evropské unie“ o částku 35 000 000 000 Kč. Změna se promítne do dalších adekvátních ukazatelů. ",null,null,0,null,35000000000,35000000000,null,"Tato změna se promítne do textové části zákona a dalších adekvátních ukazatelů."]
["76",null,314,"Min. vnitra","zvýšit výdaje v kap. 314 Min. vnitra v rámci specifického ukazatele \"Výdaje Policie ČR\" o částku 139 000 000 Kč s určením na podseskupení položek 501 Platy. Dále se zvyšuje specifický ukazatel \"Výdaje Hasičského záchranného sboru ČR\" o částku 48 000 000 Kč s určením na podseskupení položek 501 Platy určenou k v vyvážení propadu reálných výdělků. Změna se promítne do dalších adekvátních ukazatelů.  ",{"$f":"139000000+48000000","v":187000000},null,187000000,null,null,0,"R. Koten",null,5583]
[null,null,314,"Min. vnitra","snížit výdaje v kap. 314 Min. vnitra v rámci specifického ukazatele \"Výdaje na zabezpečení plnění úkolů Ministerstva vnitra a ostatních organizačních složek státu\" o částku 187 000 000 Kč v rámci podseskupení položek 522 Neinvestiční transfery neziskovým a podobným organizacím o částku 139 000 000 Kč a v rámci podseskupení položek 533 Neinvestiční transfery příspěvkovým a podobným organizacím o částku 48 000 000 Kč. Změna se promítne do dalších adekvátních ukazatelů.  ",null,null,0,187000000,null,187000000]
["77",null,398,"Všeobecná pokladní správa","zvýšit výdaje v kap. 398 Všeobecná pokladní správa v rámci specifického ukazatele  „Vládní rozpočtová rezerva“ o částku 5 000 000 000 Kč určené pro prevenci a řešení krizových situací a civilní ochranu obyvatelstva. Změna se promítne do dalších adekvátních ukazatelů. \n\n",null,5000000000,5000000000,null,null,0,"V. Zlínský a V. Lesenská",null,5252]
[null,null,398,"Všeobecná pokladní správa","snížit výdaje v kap. 398 Všeobecná pokladní správa v rámci specifického ukazatele  „Odvody do rozpočtu Evropské unie“ o částku 5 000 000 000 Kč. Změna se promítne do dalších adekvátních ukazatelů. ",null,null,0,null,5000000000,5000000000,null,"Tato změna se promítne do textové části zákona a dalších adekvátních ukazatelů."]
["78",null,307,"Min. obrany","zvýšit výdaje v kap. 307 Min. obrany v rámci průřezového ukazatele \"Platy zaměstnanců bezpečnostních sborů a ozbrojených sil ve služebním poměru\" o částku 1 050 113 000 Kč s určením k dodatečnému navýšení platů vojáků o 5 % (celkem pro rok 2025 tak o 10%). Změna se promítne do dalších adekvátních ukazatelů.  ",1050113000,null,1050113000,null,null,0,"L. Metnar",null,5605]
[null,null,307,"Min. obrany","snížit výdaje v kap. 307 Min. obrany v rámci specifického ukazatele „Zajištění obrany ČR silami Armády ČR“ o částku 1 050 113 000 Kč snížením splátek na pořízení letounů F35. Změna se promítne do dalších adekvátních ukazatelů.  ",null,null,0,1050113000,null,1050113000]
["79",null,329,"Min. zemědělství","zvýšit výdaje v kap. 329 Min. zemědělství v rámci specifického ukazatele \"Ostatní výdaje na státní politiku resortu, inspekční, kontrolní a výzkumnou činnost\" o částku 67 133 393 Kč s určením na platy a ostatní platby za provedenou práci a příslušenství pro Státní pozemkový úřad. \nZároveň se zvyšují průřezové ukazatele \"Platy zaměstnanců a ostatní platby za provedenou práci\" o částku 49 802 220 Kč a dále \"Povinné pojistné placené zaměstnavatelem\" o částku 16 833 151 Kč, dále \"Základní příděl fondu kulturních a sociálních potřeb\" o částku 498 022 Kč a dále \"Platy zaměstnanců v pracovním poměru vyjma zaměstnanců na služebních místech\" o částku 2 558 540 Kč a dále \"Platy zaměstnanců na služebních místech dle zákona o státní službě\" o částku 47 243 680 Kč. Změna se promítne do dalších adekvátních ukazatelů.  ",67133393,null,{"$f":"SUM(F187:G187)","v":67133393},null,null,{"$f":"SUM(I187:J187)","v":0},"K. Smetana, M. Kučera, T. Dubský, P. Bendl",null,5630,"SOUHLAS"]
[null,null,398,"Všeobecná pokladní správa","snížit výdaje v kap. 398 Všeobecná pokladní správa v rámci specifického ukazatele \"Vládní rozpočtová rezerva\" o částku 67 133 393 Kč. Změna se promítne do dalších adekvátních ukazatelů.  ",null,null,0,null,67133393,67133393]
["80",null,333,"Min. školství, mládeže a tělovýchovy","zvýšit výdaje v kap. 333 Min. školství, mládeže a tělovýchovy v rámci specifického ukazatele \"Výdaje regionálního školství a přímo řízených organizací\" o částku 15 000 000 Kč s účelem na financování rozvoje poboček stávajících vysokých škol v Karlovarském kraji. Změna se promítne do dalších adekvátních ukazatelů.  ",15000000,null,{"$f":"SUM(F189:G189)","v":15000000},null,null,{"$f":"SUM(I189:J189)","v":0},"R. Oulehlová, J. Váňa",null,5616]
[null,null,398,"Všeobecná pokladní správa","snížit výdaje v kap. 398 Všeobecná pokladní správa v rámci specifického ukazatele \"Vládní rozpočtová rezerva\" o částku 15 000 000 Kč. Změna se promítne do dalších adekvátních ukazatelů.  ",null,null,0,null,15000000,15000000]
["81",null,305,"Bezpečnostní informační služba","zvýšit celkové výdaje v kap. 305 Bezpečnostní informační služba v rámci specifického ukazatele \"Výdaje na zabezpečení plnění úkolů Bezpečnostní informační služby\" o částku 250 000 000 Kč k posílení rozpočtu pro zvýšení vnitřní bezpečnosti státu. Změna se promítne do dalších adekvátních ukazatelů kapitoly. ",250000000,null,{"$f":"SUM(F191:G191)","v":250000000},null,null,{"$f":"SUM(I191:J191)","v":0},"R. Králíček, H. Lang, D. Ryba, P. Sadovský, J. Mašek, P. Růžička",null,5620]
[null,null,398,"Všeobecná pokladní správa","snížit výdaje v kap. 398 Všeobecná pokladní správa v rámci specifického ukazatele \"Vládní rozpočtová rezerva\" o částku 250 000 000 Kč. Změna se promítne do dalších adekvátních ukazatelů.  ",null,null,{"$f":"SUM(F192:G192)","v":0},null,250000000,{"$f":"SUM(I192:J192)","v":250000000}]
["82",null,378,"Národní úřad pro kybernetickou a informační bezpečnost","zvýšit výdaje v kap. 378 Národní úřad pro kybernetickou a informační bezpečnost v rámci specifického ukazatele \"Výdaje na zabezpečení plnění úkolů Národního úřadu pro kybernetickou a informační bezpečnost\" o částku 35 000 000 Kč určenou k posílení běžných i investičních výdajů. Změna se promítne do dalších adekvátních ukazatelů kapitoly. ",35000000,null,{"$f":"SUM(F193:G193)","v":35000000},null,null,{"$f":"SUM(I193:J193)","v":0},"R. Králíček, H. Lang, D. Ryba, P. Sadovský, J. Mašek, P. Růžička",null,5622]
[null,null,364,"Digitální a informační agentura","snížit výdaje v kap. 364 Digitální a informační agentura v rámci specifického ukazatele \"Výdaje na zabezpečení plnění úkolů Digitální a informační agentury\" o částku 35 000 000 Kč z aplikace e-doklady. Změna se promítne do dalších adekvátních ukazatelů.  ",null,null,0,35000000,null,35000000]
["83",null,333,"Min. školství, mládeže a tělovýchovy","zvýšit výdaje v kap. 333 Min. školství, mládeže a tělovýchovy v rámci specifického ukazatele \"Výdaje regionálního školství a přímo řízených organizací\" v rámci programu 13334 Podpora rozvoje infrastruktury základního vzdělávání zřizovaného obcemi a dobrovolnými svazky obcí a dále programu 13333 Podpora vybraných projektů rozvoje výukových kapacit základního vzdělávání zřizovaného obcemi a dobrovolnými svazky obcí s určením zejména pro ZŠ a MŠ o částku 400 000 000 Kč. Změna se promítne do dalších adekvátních ukazatelů.  ",400000000,null,{"$f":"SUM(F195:G195)","v":400000000},null,null,{"$f":"SUM(I195:J195)","v":0},"P. Svoboda, R. Zajíčková, K. Haas, V. Kovářová, J. Berki, J. Hájek, M. O. Havel, A. Tesařík, I. Vondrák",null,5636]
[null,null,398,"Všeobecná pokladní správa","snížit výdaje v kap. 398 Všeobecná pokladní správa v rámci specifického ukazatele \"Vládní rozpočtová rezerva\" o částku 400 000 000 Kč. Změna se promítne do dalších adekvátních ukazatelů.  ",null,null,0,null,400000000,400000000]
["84",null,333,"Min. školství, mládeže a tělovýchovy","zvýšit výdaje v kap. 333 Min. školství, mládeže a tělovýchovy v rámci specifického ukazatele \"Výdaje regionálního školství a přímo řízených organizací\" v rámci programu 13334 Podpora rozvoje infrastruktury základního vzdělávání zřizovaného obcemi a dobrovolnými svazky obcí a dále programu 13333 Podpora vybraných projektů rozvoje výukových kapacit základního vzdělávání zřizovaného obcemi a dobrovolnými svazky obcí s určením zejména pro ZŠ a MŠ o částku 600 000 000 Kč. Změna se promítne do dalších adekvátních ukazatelů.  ",600000000,null,600000000,null,null,0,"P. Svoboda, R. Zajíčková, K. Haas, V. Kovářová, J. Berki, J. Hájek, M. O. Havel, A. Tesařík, I. Vondrák",null,5637]
[null,null,398,"Všeobecná pokladní správa","snížit výdaje v kap. 398 Všeobecná pokladní správa v rámci specifického ukazatele \"Vládní rozpočtová rezerva\" o částku 600 000 000 Kč. Změna se promítne do dalších adekvátních ukazatelů.  ",null,null,0,null,600000000,600000000]
["85",null,333,"Min. školství, mládeže a tělovýchovy","zvýšit výdaje v kap. 333 Min. školství, mládeže a tělovýchovy v rámci specifického ukazatele \"Ostatní výdaje na zabezpečení úkolů resortu“ o částku 6 000 000 000 Kč a směrovat je do tzv.speciálního školství. Změna se promítne do dalších adekvátních ukazatelů kapitoly.",6000000000,null,{"$f":"SUM(F199:G199)","v":6000000000},null,null,{"$f":"SUM(I199:J199)","v":0},"K. Sládeček a J. Hrnčíř",null,5182]
[null,null,333,"Min. školství mládeže a tělovýchovy","snížit výdaje v kap. 333 Min. školství, mládeže a tělovýchovy v rámci specifického ukazatele \"Výdaje regionálního školství a přímo řízených organizací“ o částku 6 000 000 000 Kč, které byly určené na rozvojové programy, především podporu společného vzdělávání (tzv. inkluzi). Změna se promítne do dalších adekvátních ukazatelů kapitoly.",null,null,0,6000000000,null,6000000000]
["86",null,335,"Min. zdravotnictví","zvýšit výdaje v kap. 335 Min. zdravotnictví v rámci specifického ukazatele \"Zdravotnické programy\" o částku 5 000 000 Kč určením pro Národní program řešení problematiky HIV/AIDS.  Změna se promítne do dalších adekvátních ukazatelů.  ",5000000,null,{"$f":"SUM(F201:G201)","v":5000000},null,null,{"$f":"SUM(I201:J201)","v":0},"L. Turek, V. Vomáčka, M. Major, P. Fifka",null,5619,"SOUHLAS"]
[null,null,398,"Všeobecná pokladní správa","snížit výdaje v kap. 398 Všeobecná pokladní správa v rámci specifického ukazatele \"Vládní rozpočtová rezerva\" o částku 5 000 000 Kč. Změna se promítne do dalších adekvátních ukazatelů.  ",null,null,0,null,5000000,5000000]
["87",null,329,"Ministerstvo zemědělství","zvýšit výdaje v kap. 329 Min. zemědělství v rámci specifického ukazatele \"Podpora lesního hospodářství\" o částku 500 000 000 Kč s určením na obnovu holin po kůrovcové kalamitě. Změna se promítne do dalších adekvátních ukazatelů.  ",500000000,null,{"$f":"SUM(F203:G203)","v":500000000},null,null,{"$f":"SUM(I203:J203)","v":0},"R. Rozvoral, O. Černý",null,5530]
[null,null,306,"Min. zahraničních věcí","snížit výdaje v kap. 306 Min. zahraničních věcí v rámci specifického ukazatele \"Výdaje na plnění úkolů Ministerstva zahraničních věcí\" a \"v tom: program humanitární, stabilizační, rozvojové a hospodářské asistence Ukrajině\" o částku 500 000 000 Kč. Změna se promítne do dalších adekvátních ukazatelů.  ",null,null,{"$f":"SUM(F204:G204)","v":0},500000000,null,{"$f":"SUM(I204:J204)","v":500000000}]
["88",null,329,"Ministerstvo zemědělství","zvýšit výdaje v kap. 329 Min. zemědělství v rámci specifického ukazatele \"Podpora agrárního sektoru\" a \"v tom: dotace Státnímu zemědělskému intervenčnímu fondu\" o částku 200 000 000 Kč s určením podpořit chovatele drůbeže v rámci dotačního programu Zlepšení životních podmínek chovu drůbeže. Změna se promítne do dalších adekvátních ukazatelů.  ",200000000,null,{"$f":"SUM(F205:G205)","v":200000000},null,null,{"$f":"SUM(I205:J205)","v":0},"načetl R. Rozvoral, O. Černý",null,5531]
[null,null,306,"Min. zahraničních věcí","snížit výdaje v kap. 306 Min. zahraničních věcí v rámci specifického ukazatele \"Výdaje na plnění úkolů Ministerstva zahraničních věcí\" a \"v tom: příspěvky mezinárodním organizacím a peněžní dary vybraným institucím do zahraničí\" o částku 200 000 000 Kč. Změna se promítne do dalších adekvátních ukazatelů.  ",null,null,{"$f":"SUM(F206:G206)","v":0},200000000,null,{"$f":"SUM(I206:J206)","v":200000000}]
["89",null,329,"Ministerstvo zemědělství","zvýšit výdaje v kap. 329 Min. zemědělství v rámci specifického ukazatele \"Podpora agrárního sektoru\" a \"v tom: dotace Státnímu zemědělskému intervenčnímu fondu\" o částku 50 000 000 Kč s určením na podporu dotačního titulu Podpora včelařství. Změna se promítne do dalších adekvátních ukazatelů.  ",50000000,null,{"$f":"SUM(F207:G207)","v":50000000},null,null,{"$f":"SUM(I207:J207)","v":0},"načetl R. Rozvoral, O. Černý",null,5536]
[null,null,301,"Kancelář prezidenta republiky","snížit výdaje v kap. 301 Kancelář prezidenta republiky v rámci specifického ukazatele \"Celkové výdaje na areál Pražského hradu a zámku Lány\" o částku 50 000 000 Kč. Změna se promítne do dalších adekvátních ukazatelů.  ",null,null,0,50000000,null,50000000]
["90",null,322,"Min. průmyslu a obchodu","zvýšit výdaje v kap. 322 Min. průmyslu a obchodu v rámci specifického ukazatele \"Podpora podnikání\" o částku 464 000 000 Kč s účelem podpořit průmyslové zóny v Královehradeckém a Jihomoravském kraji a dále Program Smart Parks for the Future. Změna se promítne do dalších adekvátních ukazatelů.  ",464000000,null,{"$f":"SUM(F209:G209)","v":464000000},null,null,{"$f":"SUM(I209:J209)","v":0},"T. Müller",null,5626,"SOUHLAS"]
[null,null,322,"Min. průmyslu a obchodu","snížit výdaje v kap. 322 Min. průmyslu a obchodu v rámci specifického ukazatele \"Zahlazování následků hornické činnosti, mandatorní výdaje a zajištění dalších potřeb státu\" a \"v tom: ostatní výdaje\" o částku 464 000 000 Kč. Změna se promítne do dalších adekvátních ukazatelů.  ",null,null,{"$f":"SUM(F210:G210)","v":0},464000000,null,{"$f":"SUM(I210:J210)","v":464000000}]
["91",null,322,"Min. průmyslu a obchodu","zvýšit výdaje v kap. 322 Min. průmyslu a obchodu v rámci specifického ukazatele \"Výdaje spojené s další činností resortu\" o částku 15 000 000 Kč s účelem podpořit nestátní neziskové organizace v oblasti ochrany spotřebitele. Změna se promítne do dalších adekvátních ukazatelů.  ",15000000,null,{"$f":"SUM(F211:G211)","v":15000000},null,null,{"$f":"SUM(I211:J211)","v":0},"T. Müller",null,5632]
[null,null,322,"Min. průmyslu a obchodu","snížit výdaje v kap. 322 Min. průmyslu a obchodu v rámci specifického ukazatele \"Zahlazování následků hornické činnosti, mandatorní výdaje a zajištění dalších potřeb státu\" a \"v tom: ostatní výdaje\" o částku 15 000 000 Kč. Změna se promítne do dalších adekvátních ukazatelů.  ",null,null,{"$f":"SUM(F212:G212)","v":0},15000000,null,{"$f":"SUM(I212:J212)","v":15000000}]
["92",null,327,"Min. dopravy ","zvýšit výdaje v kap 327. Min dopravy v rámci specifického ukazatele \"Dotace pro Státní fond dopravní infrastruktury\" a \"v tom: ostatní dotace pro Státní fond dopravní infrastruktury\" o částku 4 000 000 000 Kč s určením na opravy silnic II. a III. třídy. Změna se promítne do dalších adekvátních ukazatelů.  ",4000000000,null,{"$f":"SUM(F213:G213)","v":4000000000},null,null,{"$f":"SUM(I213:J213)","v":0},"M. Kolovratník, A. Schillerová, K. Havlíček, R. Brabec, P. Nacher, L. Okleštěk, R. Kubíček, P. Sadovský, J. Bělica, M. Kukla, M. Novák, D. Pražák, K. Farhan, J. Váňa",null,5598]
[null,null,398,"Všeobecná pokladní správa","snížit výdaje v kap. 398 Všeobecná pokladní správa v rámci specifického ukazatele \"Vládní rozpočtová rezerva\" o částku 1 000 000 000 Kč. Změna se promítne do dalších adekvátních ukazatelů.  ",null,null,0,null,1000000000,1000000000]
[null,null,396,"Státní dluh","snížit výdaje v kap. 396 Státní dluh v rámci specifického ukazatele \"Obsluha státního dluhu\" o částku 3 000 000 000 Kč. Změna se promítne do dalších adekvátních ukazatelů.  ",null,null,0,3000000000,null,3000000000]
["93",null,327,"Min. dopravy ","zvýšit výdaje v kap 327. Min dopravy v rámci specifického ukazatele \"Ostatní výdaje spojené s dopravní politikou státu\" o částku 2 750 000 000 Kč s účelem zvýšit slevu ve veřejné dopravě pro studenty a seniory na 75%.  Změna se promítne do dalších adekvátních ukazatelů.  ",2750000000,null,{"$f":"SUM(F216:G216)","v":2750000000},null,null,{"$f":"SUM(I216:J216)","v":0},"M. Kolovratník",null,5595]
[null,null,398,"Všeobecná pokladní správa","snížit výdaje v kap. 398 Všeobecná pokladní správa v rámci specifického ukazatele \"Vládní rozpočtová rezerva\" o částku 1 000 000 000 Kč. Změna se promítne do dalších adekvátních ukazatelů.  ",null,null,{"$f":"SUM(F217:G217)","v":0},null,1000000000,{"$f":"SUM(I217:J217)","v":1000000000}]
[null,null,396,"Státní dluh","snížit výdaje v kap. 396 Státní dluh v rámci specifického ukazatele \"Obsluha státního dluhu\" o částku 1 750 000 000 Kč. Změna se promítne do dalších adekvátních ukazatelů.  ",null,null,{"$f":"SUM(F218:G218)","v":0},1750000000,null,{"$f":"SUM(I218:J218)","v":1750000000}]
["94",null,315,"Min. životního prostředí","zvýšit výdaje v kap. 315 Min. životního prostředí v rámci specifického ukazatele \"Ochrana přírody a krajiny\" o částku 50 000 000 Kč s určením na Program péče o krajinu v rámci výdajového okruhu 501001 Zlepšování stavu přírody a krajiny určené k financování menších projektů zlepšující stav v krajině. Změna se promítne do dalších adekvátních ukazatelů.  ",50000000,null,{"$f":"SUM(F219:G219)","v":50000000},null,null,{"$f":"SUM(I219:J219)","v":0},"R. Brabec",null,5628]
[null,null,398,"Všeobecná pokladní správa","snížit výdaje v kap. 398 Všeobecná pokladní správa v rámci specifického ukazatele \"Vládní rozpočtová rezerva\" o částku 50 000 000 Kč. Změna se promítne do dalších adekvátních ukazatelů.  ",null,null,0,null,50000000,50000000]
["95",null,333,"Min. školství, mládeže a tělovýchovy","zvýšit výdaje v kap. 333 Min. školství, mládeže a tělovýchovy v rámci specifického ukazatele „Výdaje regionálního školství a přímo řízených organizací“ o částku 10 000 000 000 Kč určenou na platy nepedagogických pracovníků. Změna se promítne do dalších adekvátních ukazatelů.  ",10000000000,null,{"$f":"SUM(F221:G221)","v":10000000000},null,null,{"$f":"SUM(I221:J221)","v":0},"Z. Kettner",null,5369]
[null,null,398,"Všeobecná pokladní správa","snížit výdaje v kap. 398 Všeobecná pokladní správa v rámci specifického ukazatele  „Odvody do rozpočtu Evropské unie“ o částku 10 000 000 000 Kč.  Změna se promítne do dalších adekvátních ukazatelů.  ",null,null,0,null,10000000000,10000000000,null,"Tato změna se promítne do textové části zákona a dalších adekvátních ukazatelů."]
["96",null,333,"Min. školství, mládeže a tělovýchovy","zvýšit výdaje v kap. 333 Min. školství, mládeže a tělovýchovy v rámci specifického ukazatele „Výdaje regionálního školství a přímo řízených organizací“ o částku 1 000 000 000 Kč určenou na ostatní neinvestiční výdaje jako učebnice a pomůcky aj. Změna se promítne do dalších adekvátních ukazatelů.  ",1000000000,null,{"$f":"SUM(F223:G223)","v":1000000000},null,null,{"$f":"SUM(I223:J223)","v":0},"Z. Kettner",null,5374]
[null,null,398,"Všeobecná pokladní správa","snížit výdaje v kap. 398 Všeobecná pokladní správa v rámci specifického ukazatele  „Vládní rozpočtová rezerva“ o částku 1 000 000 000 Kč.  Změna se promítne do dalších adekvátních ukazatelů.  ",null,null,0,null,1000000000,1000000000]
["97",null,309,"Kancelář veřejného ochránce práv","zvýšit výdaje v kap. 309 Kancelář veřejného ochránce práv v rámci specifického ukazatele \"Výdaje na zabezpečení plnění úkolů Kanceláře veřejného ochránce práv\" o částku 5 791 879 Kč a zároveň se o tuto částku navýší průřezový ukazatel \"Platy zaměstnanců v pracovním poměru vyjma zaměstnanců na služebních místech\" s určením na navýšení platů zaměstnanců, aby se jejich průměrný plat dorovnal průměrnému platu na Ústavním soudu.  Změna se promítne do dalších adekvátních ukazatelů.  ",5791879,null,{"$f":"SUM(F225:G225)","v":5791879},null,null,{"$f":"SUM(I225:J225)","v":0},"H. Válková, L. Knechtová",null,5607]
[null,null,398,"Všeobecná pokladní správa","snížit výdaje v kap. 398 Všeobecná pokladní správa v rámci specifického ukazatele \"Vládní rozpočtová rezerva\" o částku 5 791 879 Kč. Změna se promítne do dalších adekvátních ukazatelů.  ",null,null,0,null,5791879,5791879]
["98",null,314,"Min. vnitra","zvýšit výdaje v kap. 314 Min. vnitra v rámci specifického ukazatele \"Výdaje Policie ČR\" o částku 500 000 000 Kč a zároveň o tuto částku zvýšit průřezový ukazatel \"Platy zaměstnanců bezpečnostních sborů a ozbrojených sil ve služebním poměru\" s určením udržet kvalitní a motivované pracovníky v klíčových složkách. Změna se promítne do dalších adekvátních ukazatelů.  ",500000000,null,{"$f":"SUM(F227:G227)","v":500000000},null,null,{"$f":"SUM(I227:J227)","v":0},"J. Dědeček",null,5585]
[null,null,306,"Min. zahraničních věcí","snížit výdaje v kap. 306 Min. zahraničních věcí v rámci specifického ukazatele \"Výdaje na plnění úkolů Ministerstva zahraničních věcí\" a \"v tom: program humanitární, stabilizační, rozvojové a hospodářské asistence Ukrajině\" o částku 500 000 000 Kč. Změna se promítne do dalších adekvátních ukazatelů.  ",null,null,{"$f":"SUM(F228:G228)","v":0},500000000,null,{"$f":"SUM(I228:J228)","v":500000000}]
["99",null,309,"Kancelář veřejného ochránce práv","zvýšit výdaje v kap. 309 Kancelář veřejného ochránce práv v rámci specifického ukazatele \"Výdaje na zabezpečení plnění úkolů Kanceláře veřejného ochránce práv\" o částku 5 791 900 Kč s určením na navýšení platů zaměstnanců, aby se jejich průměrný plat dorovnal průměrnému platu na Ústavním soudu a k pokrytí zvláštního příplatku.  Změna se promítne do dalších adekvátních ukazatelů.  ",5791900,null,{"$f":"SUM(F229:G229)","v":5791900},null,null,{"$f":"SUM(I229:J229)","v":0},"M. Jílková, M. Ochodnická, L. Potůčková, R. Zajíčková, O. Richterová, H. Okamura, M. Kohajda, M. Zborovský, R. Bělohlávková",null,5647]
[null,null,398,"Všeobecná pokladní správa","snížit výdaje v kap. 398 Všeobecná pokladní správa v rámci specifického ukazatele \"Vládní rozpočtová rezerva\" o částku 5 791 900 Kč. Změna se promítne do dalších adekvátních ukazatelů.  ",null,null,{"$f":"SUM(F230:G230)","v":0},null,5791900,{"$f":"SUM(I230:J230)","v":5791900}]
["100",null,304,"Úřad vlády ČR","zvýšit výdaje v kap. 304 Úřad vlády ČR v rámci specifického ukazatele \"Výdaje na zabezpečení úkolů Úřadu vlády ČR\" o částku 673 090 665 Kč a \"v tom: výdaje vlastního Úřadu vlády ČR\" o částku 2 911 680 Kč a dále \"v tom: výdaje spojené s činností poradních orgánů vlády\" o částku 670 178 985 Kč. Zároveň se zvyšuje průřezový ukazatel \"Program protidrogové politiky\" o částku 670 178 985 Kč s cílem realizovat aktivity Akčního plánu politiky v oblasti závislostí 2023 -2025. \nDále se zvyšuje průřezový ukazatel \"Platy zaměstnanců a ostatní platby za provedenou práci\" o částku 2 160 000 Kč  a o tutéž částku i průřezový ukazatel \"Platy zaměstnanců v pracovním poměru vyjma zaměstnanců na služebních místech\" a dále se zvyšuje průřezový ukazatel \"Povinné pojistné placené zaměstnavatelem\" o částku 730 080 Kč a dále průřezový ukazatel \"Základní příděl fondu kulturních a sociálních potřeb\" o částku 21 600 Kč. Změna se promítne do dalších adekvátních ukazatelů. \n",673090665,null,{"$f":"SUM(F231:G231)","v":673090665},null,null,{"$f":"SUM(I231:J231)","v":0},"M. Ochodnická, Z. Němečková Crkvenjaš, \nM. Šebelová, T. Philipp, R. Zajíčková, \nJ. Berki, B. Urbanová, M. Jílková, J. Flek, L. Potůčková\n",null,5621]
[null,null,398,"Všeobecná pokladní správa","snížit výdaje v kap. 398 Všeobecná pokladní správa v rámci specifického ukazatele \"Vládní rozpočtová rezerva\" o částku 673 090 665 Kč. Změna se promítne do dalších adekvátních ukazatelů.  ",null,null,0,null,673090665,673090665]
["101",null,304,"Úřad vlády ČR","zvýšit výdaje v kap. 304 Úřad vlády ČR v rámci specifického ukazatele \"Výdaje na zabezpečení úkolů Úřadu vlády ČR\" a \"v tom: výdaje vlastního Úřadu vlády ČR\" o částku 2 911 680 Kč a \"v tom: výdaje spojené s činností poradních orgánů vlády\" o částku 347 088 320 Kč. \nZároveň se zvyšuje průřezový ukazatel \"Program protidrogové politiky\" o částku 347 088 320 Kč s cílem realizovat aktivity Akčního plánu politiky v oblasti závislostí 2023 -2025. Dále se zvyšuje průřezový ukazatel \"Platy zaměstnanců a ostatní platby za provedenou práci\" o částku 2 160 000 Kč a dále se zvyšuje průřezový ukazatel \"Povinné pojistné placené zaměstnavatelem\" o částku 730 080 Kč a dále průřezový ukazatel \"Základní příděl fondu kulturních a sociálních potřeb\" o částku 21 600 Kč. Změna se promítne do dalších adekvátních ukazatelů. \n",350000000,null,{"$f":"SUM(F233:G233)","v":350000000},null,null,{"$f":"SUM(I233:J233)","v":0},"M. Ochodnická, Z. Němečková Crkvenjaš, \nM. Šebelová, T. Philipp, R. Zajíčková, \nJ. Berki, B. Urbanová, M. Jílková, J. Flek, L. Potůčková\n",null,5646]
[null,null,398,"Všeobecná pokladní správa","snížit výdaje v kap. 398 Všeobecná pokladní správa v rámci specifického ukazatele \"Vládní rozpočtová rezerva\" o částku 350 000 000 Kč. Změna se promítne do dalších adekvátních ukazatelů.  ",null,null,0,null,350000000,350000000]
["102",null,333,"Min. školství, mládeže a tělovýchovy","zvýšit výdaje v kap. 333 Min. školství, mládeže a tělovýchovy v rámci specifického ukazatele \"Výdaje regionálního školství a přímo řízených organizací\" o částku 400 000 000 Kč v rámci programu 13334 Podpora rozvoje infrastruktury základního vzdělávání zřizovaného obcemi a dobrovolnými svazky obcí  a dále programu 13333 Podpora vybraných projektů rozvoje výukových kapacit základního vzdělávání zřizovaného obcemi a dobrovolnými svazky obcí s určením zejména pro ZŠ a MŠ. Změna se promítne do dalších adekvátních ukazatelů.  ",400000000,null,{"$f":"SUM(F235:G235)","v":400000000},null,null,{"$f":"SUM(I235:J235)","v":0},"K. Haas, P. Svoboda, R. Zajíčková",null,5644]
[null,null,333,"Min. školství, mládeže a tělovýchovy","snížit výdaje v kap. 333 Min. školství, mládeže a tělovýchovy v rámci specifického ukazatele \"Ostatní výdaje na zabezpečení úkolů resortu\" o částku 400 000 000 Kč. Změna se promítne do dalších adekvátních ukazatelů.  ",null,null,0,400000000,null,400000000]
["103",null,322,"Min. průmyslu a obchodu","zvýšit výdaje v kap. 322 Min. průmyslu a obchodu v rámci specifického ukazatele \"Dotace na obnovitelné zdroje energie\" o částku 22 700 000 000 Kč s ohledem na očekávaný nárůst výdajů na Podporované zdroje energie (POZE). Změna se promítne do dalších adekvátních ukazatelů.  ",22700000000,null,22700000000,null,null,0,"načetla A. Schillerová, K. Havlíček",null,5643]
[null,null,307,"Min. obrany","snížit výdaje v kap. 307 Min. obrany v rámci specifického ukazatele \"Zajištění obrany ČR silami Armády ČR\" o částku 7 000 000 000 Kč. Změna se promítne do dalších adekvátních ukazatelů.  ",null,null,0,7000000000,null,7000000000]
[null,null,398,"Všeobecná pokladní správa","snížit výdaje v kap. 398 Všeobecná pokladní správa v rámci specifického ukazatele \"Vládní rozpočtová rezerva\" o částku 1 000 000 000 Kč. Změna se promítne do dalších adekvátních ukazatelů.  ",null,null,0,null,1000000000,1000000000]
[null,null,396,"Státní dluh","snížit výdaje v kap. 396 Státní dluh v rámci specifického ukazatele \"Obsluha státního dluhu\" o částku 14 700 000 000 Kč. Změna se promítne do dalších adekvátních ukazatelů.  ",null,null,0,14700000000,null,14700000000]
[null,null,null,null,null,null,null,{"$f":"SUM(F241:G241)","v":0},null,null,{"$f":"SUM(I241:J241)","v":0}]
[null,null,null,null,null,null,null,0,null,null,0]
[null,null,null,null,null,null,null,{"$f":"SUM(F243:G243)","v":0},null,null,0]
[null,null,null,null,"CELKEM",{"$f":"SUM(F21:F243)","v":172801116297},47155000000,219956116297,119191128925,100764987372,219956116297,"x"]
[null,null,null,null,"Kontrolní součty",null,null,{"$f":"SUM(F244:G244)","v":219956116297},null,null,{"$f":"SUM(I244:J244)","v":219956116297}]
[null,null,null,null,"Kontrolní součty (rozdíl zvýšeníxsnížení)",null,null,null,null,null,{"$f":"H245-K245","v":0}]
[]
[null,null,null,null,"Celková rekapitulace změn SR 2025"]
[null,null,null,null,null,"kapitoly","VPS","celkem",null,null,null,null," "]
[null,null,null,null,"CELKEM PŘÍJMY",{"$f":"F12-I12","v":0},{"$f":"G12-J12","v":0},{"$f":"SUM(F250:G250)","v":0}]
[null,null,null,null,"CELKEM VÝDAJE",{"$f":"F244-I244","v":53609987372},{"$f":"G244-J244","v":-53609987372},{"$f":"SUM(F251:G251)","v":0}]
[null,null,null,null,"SALDO ZMĚN",{"$f":"F250-F251","v":-53609987372},{"$f":"G250-G251","v":53609987372},{"$f":"SUM(F252:G252)","v":0}]
[null,null,null,null,null,null,null,{"$f":"H250-H251","v":0},"nevybilancované návrhy nebo variantní návrhy: 0"]
[]
[null,null,null,null,"Poznámka: Dopady schválených změn se promítnou odpovídajícím způsobem do ukazatelů příloh č. 3 a 4 zákona. Dále i do příloh č. 1, 2 a 9 zákona a textové části návrhu zákona o SR na rok 2025."]
[]
[]
[null,null,null,null,"PN = pozměňovací návrh",null,null,null,"požadavky na snížení kap. Státní dluh:",null,{"$f":"I73+I76+I79+I82+I177+I215+I218+I240","v":31993076658}]
[null,null,null,null,"VPS = kapitola Všeobecná pokladní správa",null,null,null,"požadavky na snížení VRR:",null,{"$f":"J28+J30+J32+J34+J36+J38+J40+J42+J48+J50+J52+J66+J68+J70+J72+J75+J78+J81+J96+J110+J112+J114+J116+J118+J120+J122+J126+J130+J132+J135+J161+J163+J173+J175+J178+J188+J190+J192+J196+J198+J202+J214+J217+J220+J224+J226+J230+J232+J234+J239","v":20024987372}]
[null,null,null,null,"VRR = vládní rozpočtová rezerva",null,null,null,"disponibilní výše VRR do zákonného limitu: ",null,1018751043]